{"text_format":"1","workbook":"xlsx","n_sheets":13,"sheets":["COPIER-COLLER","LIBRE","CADRE","BANDE","3BANDES","DONNEES","CLUB","1er Tour"," 2ème Tour","3ème Tour","4ème Tour","5ème Tour","6ème Tour"],"not_rendered":{"charts":0,"images":1,"macros":1,"external_links":0,"defined_names":544,"comments":0,"pivot_tables":0},"unopened":[],"bounds":{"document_bytes":16777216,"sheet_cells":100000,"rows_first":2000,"rows_last":500,"rows_between":2000,"halvings":0,"cell_chars":16384,"cell_head_chars":4096},"cells_cut":0,"cells_raw":0,"read":"whole","date_system":"1900"}

{"sheet":"COPIER-COLLER","index":0,"n_rows":2,"n_cols":6,"rows_kept":2,"cut":false,"hidden":true,"merged":[[0,0,0,5]]}
["COPIER COLLER\n SUR E2I"]
["N° LICENCE","NOM PRENOM","CATEGORIE","MOY 2,80m","MOY 3,10m","CLUB"]

{"sheet":"LIBRE","index":1,"n_rows":184,"n_cols":7,"rows_kept":184,"cut":false,"hidden":true,"merged":[[0,0,0,6]]}
["LIBRE\n2024 - MOYENNE EN COUR DE SAISON - 2025"]
["N° LICENCE","NOM PRENOM","CATÉGORIE","MOY 2,80m","MOY 3,10m","CLUB","NC-CL"]
["123456 A","ACHOUR FERHAT","N3",null,"6,75","19106 – BILLARD CLUB VINONNAIS","CL"]
["151459 E","ALIBERT BRUNO","R2",2.4900000000000002,1.99,"19056 – BILLARD CLUB DE NICE"]
["157036 R","ALLIGIER GERARD","R3",1.46,1.17,"19019 – BILLARD CLUB DE LA BAIE"]
["159130 S","ALVAREZ PHILIPPE","R1",5.12,4.0999999999999996,"19056 – BILLARD CLUB DE NICE"]
["152035 F","ALVISET GUY","R3",1.62,1.29,"19050 – BILLARD CLUB SAUSSETOIS"]
["155531 F","AMOUROUX LUC","R4",0.97,0.77,"19023 – BILLARD CLUB GARDEEN"]
["021818 E","ANDRY JEAN FRANCOIS","R2",2.35,1.88,"19090 – BILLARD AMATEUR ROGNAC"]
["021821 H","ANTONIN ALAIN","N3",6.94,5.55,"19021 – BILLARD CLUB CAVAILLONNAIS"]
["161785 D","ARMENGAU PHILIPPE","R4",0.86,0.69,"19056 – BILLARD CLUB DE NICE"]
["180272 Y","ARNOUX LAURENT","R3",1.45,1.1599999999999999,"19058 – ACADEMIE DE BILLARD DE BARBOSSI MANDELIEU"]
["148204 R","AUBERT ROUECHE LYDIA","R2",2.54,2.0299999999999998,"19106 – BILLARD CLUB VINONNAIS"]
["115304 U","BAILLON JEAN","R3 ",0.89,0.71,"19058 – ACADEMIE DE BILLARD DE BARBOSSI MANDELIEU"]
["153554 G","BALESTRI MAURICE","R4",0.88,0.7,"19058 – ACADEMIE DE BILLARD DE BARBOSSI MANDELIEU"]
["122300 W","BARRALLON JEAN PAUL","R3",1.86,1.49,"19023 – BILLARD CLUB GARDEEN"]
["103568 K","BASSOUL JEAN MARIE","R2",2.5299999999999998,2.02,"19006 – BILLARD CLUB CARPENTRASSIEN"]
["132789 H","BELTRITTI JEAN YVES","R3",1.3,1.04,"19106 – BILLARD CLUB VINONNAIS"]
["159238 K","BENIER PATRICK","R3",1.37,1.1000000000000001,"19023 – BILLARD CLUB GARDEEN"]
["159790 K","BENOIT MICHEL","R4",0.95,0.76,"19027 – ACADEMIE DE BILLARD DE BOLLENE"]
["125945 B","BERNAT JEAN PIERRE","R3",1.82,1.46,"19023 – BILLARD CLUB GARDEEN"]
["180334 Q","BETTONI GILLES","—",0.92,0.74,"19058 – ACADEMIE DE BILLARD DE BARBOSSI MANDELIEU","NC"]
["159202 W","BIARD ANDRE","R4",0.9,0.72,"19009 – CLUB BILLARD ISTREEN"]
["183516 Z","BIOT ELODIE","—",0.35,0.28000000000000003,"19058 – ACADEMIE DE BILLARD DE BARBOSSI MANDELIEU","NC"]
["179744 Z","BLANC SANTELLI ERIC","R4",0.6,0.48,"19009 – CLUB BILLARD ISTREEN"]
["150422 C","BONNEMAISON DENIS","R4",1.08,0.86,"19009 – CLUB BILLARD ISTREEN"]
["160000 N","BOSSOT JEAN","R3",1.59,1.27,"19027 – ACADEMIE DE BILLARD DE BOLLENE"]
["012645 J","BOULANDET ALAIN","R3",1.28,1.02,"19055 – ACADEMIE DE BILLARD DE MENTON"]
["152345 S","BREPSON MARTIAL","R4",1.1599999999999999,0.93,"19058 – ACADEMIE DE BILLARD DE BARBOSSI MANDELIEU"]
["021919 B","BRESSE JEAN LOUIS","—",1.3,1.04,"19016 – BILLARD CLUB ORANGEOIS"]
["113104 E","BRIAND ALAIN","R2",2.75,2.2000000000000002,"19002 – SPORT AMAT.DE BILLARD MARSEILLAIS"]
["021929 L","BRUN ROGER","—",1.84,1.47,"19017 – BILLARD CLUB PHOCEEN"]
["123684 C","BURGANT JEAN MARIE","R2 ",4.1100000000000003,3.29,"19019 – BILLARD CLUB DE LA BAIE"]
["021938 U","CALDERON LUC","R2",3.45,2.76,"19009 – CLUB BILLARD ISTREEN"]
["021944 A","CAO HUU TUOI","R1",5.22,4.17,"19098 – BILLARD CLUB LA FARE"]
["179685 K","CARLES MICHEL","—",1.1499999999999999,0.92,"19014 – BILLARD CLUB AVIGNONNAIS"]
["130701 Z","CARRION JEAN PHILIPPE","R1 ",6.09,4.87,"19058 – ACADEMIE DE BILLARD DE BARBOSSI MANDELIEU"]
["118684 U","CESARO JEAN CLAUDE","R2 ",1.87,1.5,"19007 – BILLARD CLUB BERROIS"]
["122456 W","CHARBAUT CLAUDE","R3",1.76,1.41,"19059 – BILLARD CLUB ROQUEBRUNOIS"]
["021967 X","CHARBIT JEAN MARC","R2",2.93,2.34,"19056 – BILLARD CLUB DE NICE"]
["012782 Q","CHASTAN GEORGES","R2",2.62,2.1,"19021 – BILLARD CLUB CAVAILLONNAIS"]
["148126 G","CLAUDON PHILIPPE","R4",0.79,0.63,"19056 – BILLARD CLUB DE NICE"]
["148796 K","COHEN RICHARD","R3",1.68,1.34,"19056 – BILLARD CLUB DE NICE"]
["021985 P","COPPIN JEAN MICHEL","R3",1.25,1,"19027 – ACADEMIE DE BILLARD DE BOLLENE"]
["187055 W","CORTES JEAN LOUIS","—",2.04,1.63,"19009 – CLUB BILLARD ISTREEN"]
["125938 U","COSTE PHILIPPE","R3",1.29,1.03,"19061 – ACAD.BILLARD ST RAPHAEL"]
["016838 Q","COURBOT LUDWIG","N3",6.29,5.03,"19001 – S. S. A. B. D AIX EN PROVENCE"]
["168685 D","COZETTE SYLVIE","R4",0.56999999999999995,0.46,"19023 – BILLARD CLUB GARDEEN"]
["177204 N","DALMASSO EMMANUELLE","—",0.55000000000000004,0.44,"19025 – BILLARD CLUB SISTERONNAIS"]
["170095 L","DAREAU GERALD","R3",1.45,1.1599999999999999,"19055 – ACADEMIE DE BILLARD DE MENTON"]
["155526 A","DAVID THIERRY","R2",2.77,2.21,"19025 – BILLARD CLUB SISTERONNAIS"]
["163348 C","DE LOOSE FELIX","R2",2.74,2.19,"19106 – BILLARD CLUB VINONNAIS"]
["184548 W","DEBRUYNE ANNE","R4",0.41,0.33,"19106 – BILLARD CLUB VINONNAIS"]
["113220 Q","DEBRUYNE TRISTAN","R3",2.09,1.67,"19106 – BILLARD CLUB VINONNAIS"]
["178356 Q","DEBUYSER ANNE","R4",0.84,0.67,"19058 – ACADEMIE DE BILLARD DE BARBOSSI MANDELIEU"]
["160334 B","DELAPORTE YVES","R3 ",2.4300000000000002,1.94,"19006 – BILLARD CLUB CARPENTRASSIEN"]
["168662 D","DEMARCQ JEAN FRANCOIS","R3",1.57,1.26,"19025 – BILLARD CLUB SISTERONNAIS"]
["174348 J","DOUSSET RENE","—",0.84,0.67,"19023 – BILLARD CLUB GARDEEN"]
["140803 N","DREMEAUX JEAN PIERRE","N3",7.89,6.31,"19023 – BILLARD CLUB GARDEEN"]
["013022 W","DUBREUIL FRANCK","N3 ",5.87,4.6900000000000004,"19061 – ACAD.BILLARD ST RAPHAEL"]
["102285 B","DUSSAULE PIERRE","R2 ",2.14,1.71,"19027 – ACADEMIE DE BILLARD DE BOLLENE"]
["163467 G","ELEOUET DANIEL","R3",1.77,1.42,"19006 – BILLARD CLUB CARPENTRASSIEN"]
["147622 J","ESTABLIER PIERRE","R4 ",1.2,0.96,"19023 – BILLARD CLUB GARDEEN"]
["022067 T","FERAUD GERARD","N3",7.94,6.35,"19027 – ACADEMIE DE BILLARD DE BOLLENE"]
["129036 Y","FERHAT ACHOUR","N3",6.75,5.4,"19106 – BILLARD CLUB VINONNAIS"]
["013111 H","FERNANDEZ MARC","N3",8.44,6.75,"19007 – BILLARD CLUB BERROIS"]
["122658 Q","FERRO PHILIPPE","R3",1.41,1.1200000000000001,"19009 – CLUB BILLARD ISTREEN"]
["101139 Z","FONTAINE DANY","N3",10.88,8.6999999999999993,"19106 – BILLARD CLUB VINONNAIS"]
["022084 K","FRANCO ALBERT","R2",2.84,2.27,"19019 – BILLARD CLUB DE LA BAIE"]
["167290 M","FROMEYER CORINNE","R4",0.78,0.63,"19058 – ACADEMIE DE BILLARD DE BARBOSSI MANDELIEU"]
["103216 W","GABETTO STEPHANE","R2",3.38,2.7,"19023 – BILLARD CLUB GARDEEN"]
["022092 S","GANTOIS GILLES","R1",5.57,4.45,"19016 – BILLARD CLUB ORANGEOIS"]
["163279 C","GELAS BERNARD","R3 ",1.1399999999999999,0.91,"19098 – BILLARD CLUB LA FARE"]
["022103 D","GERARD PASCAL","N1 ","—",49,"19056 – BILLARD CLUB DE NICE"]
["101282 M","GHU GERARD","R3 ",2.73,2.1800000000000002,"19016 – BILLARD CLUB ORANGEOIS"]
["022108 I","GIANNATTASIO LUCIEN","R2",2.62,2.1,"19009 – CLUB BILLARD ISTREEN"]
["118661 X","GIBARROUX CHRISTOPHE","N3",6.51,5.21,"19001 – S. S. A. B. D AIX EN PROVENCE"]
["180514 L","GILLET PHILIPPE","R4",0.75,0.6,"19058 – ACADEMIE DE BILLARD DE BARBOSSI MANDELIEU"]
["172734 E","GIRARD DENIS","—",0.5,0.4,"19023 – BILLARD CLUB GARDEEN"]
["157852 D","GODARD PASCAL","R2",3.51,2.81,"19006 – BILLARD CLUB CARPENTRASSIEN"]
["174010 R","GOUILLON MATTHIEU","R4",0.55000000000000004,0.44,"19056 – BILLARD CLUB DE NICE"]
["022129 D","GOUIRAN GEORGES","R3",1.38,1.1000000000000001,"19050 – BILLARD CLUB SAUSSETOIS"]
["104054 C","GOURSEAUD YVES","N3 ",3.63,2.9,"19016 – BILLARD CLUB ORANGEOIS"]
["157851 C","GRAVELLE JULIEN","R3",1.31,1.05,"19006 – BILLARD CLUB CARPENTRASSIEN"]
["104475 H","GUEUG PIERRE","R2 ",2.14,1.71,"19056 – BILLARD CLUB DE NICE"]
["154530 S","GUIZELIN PASCAL","R3",1.35,1.08,"19106 – BILLARD CLUB VINONNAIS"]
["011966 G","HAHN DANIEL","R3",1.71,1.37,"19017 – BILLARD CLUB PHOCEEN"]
["137523 J","HAZE PATRICK","R3",1.48,1.18,"19021 – BILLARD CLUB CAVAILLONNAIS"]
["119933 V","HERREMAN SERGE","R3",1.49,1.19,"19023 – BILLARD CLUB GARDEEN"]
["172214 P","IDJERI GILBERT","R3 ",2.76,2.21,"19050 – BILLARD CLUB SAUSSETOIS"]
["184059 P","ISRAEL ELIE","—",0.9,0.72,"19017 – BILLARD CLUB PHOCEEN"]
["184667 A","IVACHEFF HELENE","—",0.9,0.72,"19106 – BILLARD CLUB VINONNAIS"]
["181239 Z","IVACHEFF MICHEL","R4 ",1.42,1.1299999999999999,"19106 – BILLARD CLUB VINONNAIS"]
["175999 D","LANARI PIERRE","R4",1.17,0.93,"19056 – BILLARD CLUB DE NICE"]
["181199 F","LANDERECTHE PASCAL","R3",1.72,1.37,"19007 – BILLARD CLUB BERROIS"]
["179135 M","LANDOIS DOMINIQUE","R4",0.51,0.41,"19055 – ACADEMIE DE BILLARD DE MENTON"]
["168288 X","LANNURIEN THIERRY","R2",3.13,2.5,"19023 – BILLARD CLUB GARDEEN"]
["178352 L","LAUNAY MICHEL","R4",0.65,0.52,"19058 – ACADEMIE DE BILLARD DE BARBOSSI MANDELIEU"]
["163278 B","LE FAUCHEUR LAURENT","R3",1.44,1.1499999999999999,"19098 – BILLARD CLUB LA FARE"]
["110379 J","LEMARTINET ROBERT","R3",1.56,1.25,"19019 – BILLARD CLUB DE LA BAIE"]
["179358 E","LESPRIT CLAUDE","—",0.87,0.7,"19019 – BILLARD CLUB DE LA BAIE"]
["176350 K","LETELLIER ALAIN","R3",1.29,1.03,"19090 – BILLARD AMATEUR ROGNAC"]
["184858 H","LEVISTRE ALAIN","—",1.37,1.1000000000000001,"19014 – BILLARD CLUB AVIGNONNAIS"]
["022209 F","LIEGEOIS DOMINIQUE","R1",4.0999999999999996,3.28,"19027 – ACADEMIE DE BILLARD DE BOLLENE"]
["146375 V","LISI ROGER","R4",1.1499999999999999,0.92,"19007 – BILLARD CLUB BERROIS"]
["186880 F","LUNEAU JEAN CLAUDE","—",2.68,2.14,"19023 – BILLARD CLUB GARDEEN"]
["165843 P","MAGNIER PIERRE","R4",0.77,0.62,"19023 – BILLARD CLUB GARDEEN"]
["020447 L","MARCEAUX JOSE","R2",3.57,2.85,"19059 – BILLARD CLUB ROQUEBRUNOIS"]
["164047 M","MARCHAND PHILIPPE","—",1.23,0.98,"19001 – S. S. A. B. D AIX EN PROVENCE"]
["172680 W","MASSIAS GUY","—",1.1000000000000001,0.88,"19001 – S. S. A. B. D AIX EN PROVENCE"]
["149391 G","MAURON BERNARD","R2",2.65,2.12,"19023 – BILLARD CLUB GARDEEN"]
["112015 H","MAYNARD ALEXANDRE","R3",2.0099999999999998,1.61,"19056 – BILLARD CLUB DE NICE"]
["144802 I","MELLET PIERRE","R2 ",1.57,1.26,"19027 – ACADEMIE DE BILLARD DE BOLLENE"]
["152604 Z","METAIS ALBAN","R3",1.8,1.44,"19006 – BILLARD CLUB CARPENTRASSIEN"]
["183513 W","MICHEL JACQUES","—",0.98,0.79,"19006 – BILLARD CLUB CARPENTRASSIEN"]
["172218 T","MILLOT ROBERT","R3",1.39,1.1100000000000001,"19025 – BILLARD CLUB SISTERONNAIS"]
["022268 M","MOLAND PHILIPPE","R2 ",2.09,1.67,"19059 – BILLARD CLUB ROQUEBRUNOIS"]
["022271 P","MONNET JEAN CLAUDE","—",3.3,2.64,"19021 – BILLARD CLUB CAVAILLONNAIS"]
["136279 N","MONTESINOS GILLES","R4",0.99,0.79,"19012 – SALON BILLARD CLUB"]
["147624 L","MOREELS BERNARD","R3",1.3,1.04,"19023 – BILLARD CLUB GARDEEN"]
["151456 B","MOUSSIER PATRICK","R3",1.41,1.1299999999999999,"19056 – BILLARD CLUB DE NICE"]
["109063 T","MUNOS JEAN","R1",4.16,3.32,"19050 – BILLARD CLUB SAUSSETOIS"]
["109708 O","MUNOS VINCENT","R2 ",2.0499999999999998,1.64,"19007 – BILLARD CLUB BERROIS"]
["107150 E","NAPOLI SALVATORE","R3 ",1.05,0.84,"19006 – BILLARD CLUB CARPENTRASSIEN"]
["154573 P","NATELLA IDA","R4",0.61,0.49,"19056 – BILLARD CLUB DE NICE"]
["154572 N","NATELLA ROGER","R3",1.64,1.31,"19056 – BILLARD CLUB DE NICE"]
["182190 H","NOSSIN MARC","R4",1.1100000000000001,0.88,"19058 – ACADEMIE DE BILLARD DE BARBOSSI MANDELIEU"]
["020258 E","OLLIVIER DANIEL","R2 ",2.19,1.75,"19009 – CLUB BILLARD ISTREEN"]
["128468 C","OUDOUX GERARD","R3",1.29,1.03,"19023 – BILLARD CLUB GARDEEN"]
["150400 D","PACZESNY FABRICE","R3 ",2.68,2.14,"19098 – BILLARD CLUB LA FARE"]
["141673 Z","PELLAT FRANCIS","R2",2.66,2.13,"19025 – BILLARD CLUB SISTERONNAIS"]
["022321 N","PERIS MICHEL","R4",0.55000000000000004,0.44,"19056 – BILLARD CLUB DE NICE"]
["181624 S","PERRIN LIONEL","R3",1.35,1.08,"19023 – BILLARD CLUB GARDEEN"]
["112316 W","PIGNATEL FLORENT","N3",8.18,6.54,"19021 – BILLARD CLUB CAVAILLONNAIS"]
["108010 G","POIRIER DOMINIQUE","R3",1.33,1.07,"19061 – ACAD.BILLARD ST RAPHAEL"]
["170697 Q","PORA JEAN PAUL","R4",1.1100000000000001,0.88,"19009 – CLUB BILLARD ISTREEN"]
["181316 H","PORTET PATRICK","R4",0.7,0.56000000000000005,"19059 – BILLARD CLUB ROQUEBRUNOIS"]
["022346 M","POUGIN JEAN FRANCOIS","R3 ",2.31,1.84,"19059 – BILLARD CLUB ROQUEBRUNOIS"]
["144719 D","POULAIN FREDERIC","R3 ",2.44,1.95,"19016 – BILLARD CLUB ORANGEOIS"]
["172219 V","PUICHAULT REMY","R3",2.11,1.69,"19025 – BILLARD CLUB SISTERONNAIS"]
["136544 S","QUEZEL ANDRE","R4 ",1.28,1.02,"19014 – BILLARD CLUB AVIGNONNAIS"]
["022357 X","RAMOND JEAN MARC","R2",2.63,2.1,"19058 – ACADEMIE DE BILLARD DE BARBOSSI MANDELIEU"]
["161645 B","RAUD DANIEL","R3",1.78,1.42,"19098 – BILLARD CLUB LA FARE"]
["157788 J","RAVENET FRANCIS","R3",1.68,1.34,"19059 – BILLARD CLUB ROQUEBRUNOIS"]
["119696 S","REVALOR MICHEL","R2",2.5299999999999998,2.02,"19050 – BILLARD CLUB SAUSSETOIS"]
["022366 G","RIBOLLA PATRICE","R1",5.78,4.62,"19056 – BILLARD CLUB DE NICE"]
["023064 C","RIGOLLET PIERRE","N1","—",11.66,"19025 – BILLARD CLUB SISTERONNAIS"]
["134183 X","ROBBE RAYMOND","R3",1.74,1.39,"19098 – BILLARD CLUB LA FARE"]
["171160 T","RODRIGUES STEVE","R4",0.93,0.75,"19090 – BILLARD AMATEUR ROGNAC"]
["101518 O","ROUGON ROBERT","R1 ",3.01,2.41,"19007 – BILLARD CLUB BERROIS"]
["121397 D","RYCKELYNCK LAURENT","R2",3.2,2.56,"19006 – BILLARD CLUB CARPENTRASSIEN"]
["175174 G","SALES THIERRY","R3 ",0.98,0.79,"19061 – ACAD.BILLARD ST RAPHAEL"]
["186195 L","SAVI OLIVIER","—",1.32,1.05,"19050 – BILLARD CLUB SAUSSETOIS"]
["113222 S","SAVOIA PATRICK","R3",1.41,1.1299999999999999,"19050 – BILLARD CLUB SAUSSETOIS"]
["149694 L","SCHAEFER ERNEST ROBERT","R3",1.67,1.34,"19006 – BILLARD CLUB CARPENTRASSIEN"]
["136540 O","SCHENK ROBERT","R4",1.03,0.82,"19056 – BILLARD CLUB DE NICE"]
["182883 L","SEEMANN MICHAEL","—",0.93,0.75,"19025 – BILLARD CLUB SISTERONNAIS"]
["163238 H","SICARD GEORGES","R3",1.53,1.22,"19025 – BILLARD CLUB SISTERONNAIS"]
["168834 Q","SIEGLER JEAN PIERRE","N3",6.18,4.95,"19006 – BILLARD CLUB CARPENTRASSIEN"]
["010203 L","SIMON GERARD","R2",2.37,1.89,"19014 – BILLARD CLUB AVIGNONNAIS"]
["103578 U","SOLTANI OMAR","R2 ",2.17,1.73,"19106 – BILLARD CLUB VINONNAIS"]
["165931 K","SPINNLER JEAN LUC","—",1.43,1.1399999999999999,"19027 – ACADEMIE DE BILLARD DE BOLLENE"]
["020790 Q","STEINMANN SEBASTIEN","R2",2.69,2.15,"19061 – ACAD.BILLARD ST RAPHAEL"]
["022429 R","TARDIEUX LUC","R2",2.88,2.2999999999999998,"19098 – BILLARD CLUB LA FARE"]
["132938 A","TEYSSIER SERGE","R2",2.31,1.85,"19007 – BILLARD CLUB BERROIS"]
["168687 F","THOMAS PHILIPPE","R4",0.96,0.77,"19023 – BILLARD CLUB GARDEEN"]
["148252 T","TIMSIT SERGE","R4",0.56000000000000005,0.44,"19023 – BILLARD CLUB GARDEEN"]
["184495 N","TORCHIO GILBERT","R4 ",1.2,0.96,"19017 – BILLARD CLUB PHOCEEN"]
["135554 Q","TORES JEAN LUC","R2 ",4.8,3.84,"19009 – CLUB BILLARD ISTREEN"]
["172679 V","TURPIN JEAN","—",1.41,1.1299999999999999,"19001 – S. S. A. B. D AIX EN PROVENCE"]
["153163 G","VALVERDE JEAN YVES","R4 ",1.57,1.25,"19023 – BILLARD CLUB GARDEEN"]
["022459 V","VAUTRIN JEAN","R3 ",2.74,2.19,"19056 – BILLARD CLUB DE NICE"]
["147412 F","VICTOR DANIEL","R4",1.1200000000000001,0.89,"19019 – BILLARD CLUB DE LA BAIE"]
["181240 A","VIDAL RENE BERNARD","R2",2.4300000000000002,1.95,"19106 – BILLARD CLUB VINONNAIS"]
["147607 S","VIOU GERARD","R2",3.02,2.42,"19098 – BILLARD CLUB LA FARE"]
["138731 V","VISCONTI JEAN","R3 ",1.1299999999999999,0.9,"19090 – BILLARD AMATEUR ROGNAC"]
["119674 W","VITALIEN PIERRE","R3 ",2.82,2.2599999999999998,"19016 – BILLARD CLUB ORANGEOIS"]
["022476 M","VIVALDI ANDRE","N3",11.72,9.3800000000000008,"19106 – BILLARD CLUB VINONNAIS"]
["154571 M","VUILLAUME JEAN CLAUDE","R3",1.39,1.1100000000000001,"19056 – BILLARD CLUB DE NICE"]
["176943 E","WALLON PATRICK","—",0.66,0.53,"19027 – ACADEMIE DE BILLARD DE BOLLENE"]
["152534 Y","WILLAME PHILIPPE","—",0.82,0.65,"19001 – S. S. A. B. D AIX EN PROVENCE"]
["184288 N","YVOZ ALAIN","R3",2.06,1.65,"19006 – BILLARD CLUB CARPENTRASSIEN"]
["134311 V","ZANDRINO ALAIN","R3",1.65,1.32,"19007 – BILLARD CLUB BERROIS"]
["125457 H","ZOPPI CEDRIC","M","—",71.42,"19106 – BILLARD CLUB VINONNAIS"]

{"sheet":"CADRE","index":2,"n_rows":94,"n_cols":7,"rows_kept":94,"cut":false,"hidden":true,"merged":[[0,0,0,6]]}
["CADRE\n2024 - MOYENNE EN COUR DE SAISON - 2025"]
["N° LICENCE","NOM PRENOM","CATÉGORIE","MOY 2,80m","MOY 3,10m","CLUB","NC-CL"]
["106287 Z","ABAD YANNICK","—",2.9,2.3199999999999998,"19002 – SPORT AMAT.DE BILLARD MARSEILLAIS"]
["151459 E","ALIBERT BRUNO","R1",2.3199999999999998,1.85,"19056 – BILLARD CLUB DE NICE"]
["155531 F","AMOUROUX LUC","—",1.07,0.86,"19023 – BILLARD CLUB GARDEEN"]
["021818 E","ANDRY JEAN FRANCOIS","R1",1.74,1.39,"19090 – BILLARD AMATEUR ROGNAC"]
["021821 H","ANTONIN ALAIN","N3 ",6.52,5.21,"19021 – BILLARD CLUB CAVAILLONNAIS"]
["148204 R","AUBERT ROUECHE LYDIA","R1",3.13,2.5,"19106 – BILLARD CLUB VINONNAIS"]
["115304 U","BAILLON JEAN","—",0.88,0.7,"19058 – ACADEMIE DE BILLARD DE BARBOSSI MANDELIEU"]
["023184 S","BALLIGAND SERGE","N3",4.01,3.21,"19059 – BILLARD CLUB ROQUEBRUNOIS"]
["122300 W","BARRALLON JEAN PAUL","R1",2.08,1.66,"19023 – BILLARD CLUB GARDEEN"]
["103568 K","BASSOUL JEAN MARIE","R1",2.38,1.91,"19006 – BILLARD CLUB CARPENTRASSIEN"]
["132789 H","BELTRITTI JEAN YVES","R1",1.45,1.1599999999999999,"19106 – BILLARD CLUB VINONNAIS"]
["159238 K","BENIER PATRICK","R1",1.28,1.03,"19023 – BILLARD CLUB GARDEEN"]
["125945 B","BERNAT JEAN PIERRE","R1",1.75,1.4,"19023 – BILLARD CLUB GARDEEN"]
["187537 V","BONTEMPS PAUL","—",0.93,0.74,"19001 – S. S. A. B. D AIX EN PROVENCE"]
["149287 T","BORDES BERNARD","N3 ",3.25,2.6,"19061 – ACAD.BILLARD ST RAPHAEL"]
["016411 F","BRAYER DENIS","N3",4.0999999999999996,3.28,"19008 – BRITISH BILLARD CLUB AVIGNON"]
["113104 E","BRIAND ALAIN","R1",2.46,1.96,"19002 – SPORT AMAT.DE BILLARD MARSEILLAIS"]
["123684 C","BURGANT JEAN MARIE","N3 ",3.48,2.78,"19019 – BILLARD CLUB DE LA BAIE"]
["021938 U","CALDERON LUC","R1 ",3.55,2.84,"19009 – CLUB BILLARD ISTREEN"]
["104469 B","CHAPUIS ERIC","N2","—",6.2,"19056 – BILLARD CLUB DE NICE"]
["021967 X","CHARBIT JEAN MARC","R1",3.26,2.61,"19056 – BILLARD CLUB DE NICE"]
["148796 K","COHEN RICHARD","—",1.23,0.99,"19056 – BILLARD CLUB DE NICE"]
["187055 W","CORTES JEAN LOUIS","—",2.12,1.69,"19009 – CLUB BILLARD ISTREEN"]
["016838 Q","COURBOT LUDWIG","N3",4.0999999999999996,3.28,"19001 – S. S. A. B. D AIX EN PROVENCE"]
["155526 A","DAVID THIERRY","R1",1.78,1.43,"19025 – BILLARD CLUB SISTERONNAIS"]
["113220 Q","DEBRUYNE TRISTAN","—",1.39,1.1100000000000001,"19106 – BILLARD CLUB VINONNAIS"]
["020635 R","DEFRETIN JOEL","N2","—",6.07,"19023 – BILLARD CLUB GARDEEN"]
["140803 N","DREMEAUX JEAN PIERRE","N2 ","—",4.3,"19023 – BILLARD CLUB GARDEEN"]
["163467 G","ELEOUET DANIEL","R1",2.0699999999999998,1.65,"19006 – BILLARD CLUB CARPENTRASSIEN"]
["147622 J","ESTABLIER PIERRE","R1",1.0900000000000001,0.87,"19023 – BILLARD CLUB GARDEEN"]
["022067 T","FERAUD GERARD","N2 ","—",4.68,"19027 – ACADEMIE DE BILLARD DE BOLLENE"]
["129036 Y","FERHAT ACHOUR","N2 ","—",3.48,"19106 – BILLARD CLUB VINONNAIS"]
["013111 H","FERNANDEZ MARC","N3",5.43,4.34,"19007 – BILLARD CLUB BERROIS"]
["122658 Q","FERRO PHILIPPE","R1",1.78,1.42,"19009 – CLUB BILLARD ISTREEN"]
["101139 Z","FONTAINE DANY","N2","—",5.72,"19106 – BILLARD CLUB VINONNAIS"]
["103216 W","GABETTO STEPHANE","R1",2.29,1.83,"19023 – BILLARD CLUB GARDEEN"]
["022092 S","GANTOIS GILLES","N3",4.8899999999999997,3.91,"19016 – BILLARD CLUB ORANGEOIS"]
["163279 C","GELAS BERNARD","R1",1.22,0.98,"19098 – BILLARD CLUB LA FARE"]
["022103 D","GERARD PASCAL","N2 ","—",10.71,"19056 – BILLARD CLUB DE NICE"]
["022108 I","GIANNATTASIO LUCIEN","R1",1.88,1.51,"19009 – CLUB BILLARD ISTREEN"]
["118661 X","GIBARROUX CHRISTOPHE","N3",3.96,3.17,"19001 – S. S. A. B. D AIX EN PROVENCE"]
["157852 D","GODARD PASCAL","R1",2.31,1.85,"19006 – BILLARD CLUB CARPENTRASSIEN"]
["104475 H","GUEUG PIERRE","R1",2.13,1.71,"19056 – BILLARD CLUB DE NICE"]
["154530 S","GUIZELIN PASCAL","R1",1.5,1.2,"19106 – BILLARD CLUB VINONNAIS"]
["011966 G","HAHN DANIEL","R1",1.81,1.44,"19017 – BILLARD CLUB PHOCEEN"]
["137523 J","HAZE PATRICK","R1",1.38,1.1000000000000001,"19021 – BILLARD CLUB CAVAILLONNAIS"]
["119933 V","HERREMAN SERGE","R1",1.31,1.05,"19023 – BILLARD CLUB GARDEEN"]
["181239 Z","IVACHEFF MICHEL","—",1.26,1.01,"19106 – BILLARD CLUB VINONNAIS"]
["181199 F","LANDERECTHE PASCAL","R1",1.37,1.0900000000000001,"19007 – BILLARD CLUB BERROIS"]
["168288 X","LANNURIEN THIERRY","R1",2.92,2.33,"19023 – BILLARD CLUB GARDEEN"]
["163278 B","LE FAUCHEUR LAURENT","—",1.46,1.17,"19098 – BILLARD CLUB LA FARE"]
["176350 K","LETELLIER ALAIN","R1",1.07,0.86,"19090 – BILLARD AMATEUR ROGNAC"]
["022209 F","LIEGEOIS DOMINIQUE","N3",3.55,2.84,"19027 – ACADEMIE DE BILLARD DE BOLLENE"]
["146375 V","LISI ROGER","R1",1.02,0.82,"19007 – BILLARD CLUB BERROIS"]
["162076 V","LUCENET PAUL","R1",1.75,1.4,"19009 – CLUB BILLARD ISTREEN"]
["186880 F","LUNEAU JEAN CLAUDE","—",3.27,2.61,"19023 – BILLARD CLUB GARDEEN"]
["112015 H","MAYNARD ALEXANDRE","R1",1.54,1.23,"19056 – BILLARD CLUB DE NICE"]
["144802 I","MELLET PIERRE","R1",1.2,0.96,"19027 – ACADEMIE DE BILLARD DE BOLLENE"]
["022268 M","MOLAND PHILIPPE","N3 ",2.16,1.73,"19059 – BILLARD CLUB ROQUEBRUNOIS"]
["022271 P","MONNET JEAN CLAUDE","—",3.15,2.52,"19021 – BILLARD CLUB CAVAILLONNAIS"]
["147624 L","MOREELS BERNARD","—",1.28,1.02,"19023 – BILLARD CLUB GARDEEN"]
["109063 T","MUNOS JEAN","N3 ",3.07,2.46,"19050 – BILLARD CLUB SAUSSETOIS"]
["141788 K","N GUYEN VAN DUC MAX","—",1.08,0.87,"19007 – BILLARD CLUB BERROIS"]
["154572 N","NATELLA ROGER","R1",1.42,1.1299999999999999,"19056 – BILLARD CLUB DE NICE"]
["020258 E","OLLIVIER DANIEL","R1",1.81,1.45,"19009 – CLUB BILLARD ISTREEN"]
["150400 D","PACZESNY FABRICE","R1",1.78,1.42,"19098 – BILLARD CLUB LA FARE"]
["141673 Z","PELLAT FRANCIS","R1",2.4300000000000002,1.95,"19025 – BILLARD CLUB SISTERONNAIS"]
["130773 T","PEREZ CHRISTIAN","R1",1.32,1.06,"19009 – CLUB BILLARD ISTREEN"]
["181316 H","PORTET PATRICK","R1",0.87,0.69,"19059 – BILLARD CLUB ROQUEBRUNOIS"]
["022346 M","POUGIN JEAN FRANCOIS","R1",2.09,1.67,"19059 – BILLARD CLUB ROQUEBRUNOIS"]
["144719 D","POULAIN FREDERIC","R1",1.72,1.37,"19016 – BILLARD CLUB ORANGEOIS"]
["022366 G","RIBOLLA PATRICE","N3",3.71,2.97,"19056 – BILLARD CLUB DE NICE"]
["023064 C","RIGOLLET PIERRE","N3 ",7.14,5.71,"19025 – BILLARD CLUB SISTERONNAIS"]
["134183 X","ROBBE RAYMOND","R1",1.64,1.31,"19098 – BILLARD CLUB LA FARE"]
["101518 O","ROUGON ROBERT","N3",3.98,3.18,"19007 – BILLARD CLUB BERROIS"]
["168834 Q","SIEGLER JEAN PIERRE","N3",4.22,3.37,"19006 – BILLARD CLUB CARPENTRASSIEN"]
["022412 A","SINANIAN JEAN PAUL","—",3.36,2.69,"19017 – BILLARD CLUB PHOCEEN"]
["103578 U","SOLTANI OMAR","R1",2.21,1.77,"19106 – BILLARD CLUB VINONNAIS"]
["020790 Q","STEINMANN SEBASTIEN","R1",1.95,1.56,"19061 – ACAD.BILLARD ST RAPHAEL"]
["022429 R","TARDIEUX LUC","R1",2.5499999999999998,2.04,"19098 – BILLARD CLUB LA FARE"]
["132938 A","TEYSSIER SERGE","—",2.33,1.86,"19007 – BILLARD CLUB BERROIS"]
["022438 A","TONOLI PASCAL","N3 ",3.32,2.65,"19059 – BILLARD CLUB ROQUEBRUNOIS"]
["135554 Q","TORES JEAN LUC","R1",2.59,2.0699999999999998,"19009 – CLUB BILLARD ISTREEN"]
["147607 S","VIOU GERARD","R1",2.64,2.11,"19098 – BILLARD CLUB LA FARE"]
["138731 V","VISCONTI JEAN","—",1.28,1.03,"19090 – BILLARD AMATEUR ROGNAC"]
["119674 W","VITALIEN PIERRE","R1",2.2999999999999998,1.84,"19016 – BILLARD CLUB ORANGEOIS"]
["022476 M","VIVALDI ANDRE","N2","—",5.87,"19106 – BILLARD CLUB VINONNAIS"]
["154571 M","VUILLAUME JEAN CLAUDE","R1",1.22,0.98,"19056 – BILLARD CLUB DE NICE"]
["152534 Y","WILLAME PHILIPPE","—",0.88,0.71,"19001 – S. S. A. B. D AIX EN PROVENCE"]
["134311 V","ZANDRINO ALAIN","R1",1.64,1.31,"19007 – BILLARD CLUB BERROIS"]
["144788 U","ZOPPI AIME","N3 ",3.43,2.75,"19106 – BILLARD CLUB VINONNAIS"]
["125457 H","ZOPPI CEDRIC","Masters","—",25.58,"19106 – BILLARD CLUB VINONNAIS"]

{"sheet":"BANDE","index":3,"n_rows":132,"n_cols":7,"rows_kept":132,"cut":false,"hidden":true,"merged":[[0,0,0,6]]}
["BANDE\n2024 - MOYENNE EN COUR DE SAISON - 2025"]
["N° LICENE","NOM PRENOM","CATÉGORIE","MOY 2,80m","MOY 3,10m","CLUB","NC-CL"]
["106287 Z","ABAD YANNICK","R1 ",2.14,1.9,"19002 – SPORT AMAT.DE BILLARD MARSEILLAIS"]
["106902 Q","ABEAUZIT JACQUES","—",0.83,0.74,"19014 – BILLARD CLUB AVIGNONNAIS"]
["157036 R","ALLIGIER GERARD","R1",1.05,0.94,"19019 – BILLARD CLUB DE LA BAIE"]
["155531 F","AMOUROUX LUC","R2",0.71,0.63,"19023 – BILLARD CLUB GARDEEN"]
["021818 E","ANDRY JEAN FRANCOIS","R1",1.04,0.92,"19090 – BILLARD AMATEUR ROGNAC"]
["021821 H","ANTONIN ALAIN","N3",2.0299999999999998,1.8,"19021 – BILLARD CLUB CAVAILLONNAIS"]
["148204 R","AUBERT ROUECHE LYDIA","R1 ",0.97,0.86,"19106 – BILLARD CLUB VINONNAIS"]
["021839 Z","AZOULAY ALAIN","R1",1.63,1.45,"19017 – BILLARD CLUB PHOCEEN"]
["115304 U","BAILLON JEAN","R2",0.56999999999999995,0.51,"19058 – ACADEMIE DE BILLARD DE BARBOSSI MANDELIEU"]
["153554 G","BALESTRI MAURICE","R2",0.56999999999999995,0.51,"19058 – ACADEMIE DE BILLARD DE BARBOSSI MANDELIEU"]
["023184 S","BALLIGAND SERGE","R1 ",1.95,1.74,"19059 – BILLARD CLUB ROQUEBRUNOIS"]
["109917 P","BARBANNEAU FREDERIC","N3",2.16,1.93,"19106 – BILLARD CLUB VINONNAIS"]
["122300 W","BARRALLON JEAN PAUL","R1",1.22,1.0900000000000001,"19023 – BILLARD CLUB GARDEEN"]
["103568 K","BASSOUL JEAN MARIE","R1",1.07,0.95,"19006 – BILLARD CLUB CARPENTRASSIEN"]
["159238 K","BENIER PATRICK","R2",0.88,0.78,"19023 – BILLARD CLUB GARDEEN"]
["159790 K","BENOIT MICHEL","—",0.59,0.52,"19027 – ACADEMIE DE BILLARD DE BOLLENE"]
["125945 B","BERNAT JEAN PIERRE","R1",1.06,0.94,"19023 – BILLARD CLUB GARDEEN"]
["160000 N","BOSSOT JEAN","R1 ",0.95,0.85,"19027 – ACADEMIE DE BILLARD DE BOLLENE"]
["152345 S","BREPSON MARTIAL","R2",0.83,0.74,"19058 – ACADEMIE DE BILLARD DE BARBOSSI MANDELIEU"]
["123684 C","BURGANT JEAN MARIE","R1",1.43,1.27,"19019 – BILLARD CLUB DE LA BAIE"]
["130701 Z","CARRION JEAN PHILIPPE","R1 ",1.98,1.77,"19058 – ACADEMIE DE BILLARD DE BARBOSSI MANDELIEU"]
["012782 Q","CHASTAN GEORGES","R1",1.38,1.23,"19021 – BILLARD CLUB CAVAILLONNAIS"]
["137581 P","CHEMLA ELIE","R1",1.26,1.1200000000000001,"19014 – BILLARD CLUB AVIGNONNAIS"]
["187031 V","CHEURF SELIMANE","—",0.64,0.56999999999999995,"19090 – BILLARD AMATEUR ROGNAC"]
["108854 S","CHUZEVILLE GILLES","R1 ",1.94,1.72,"19025 – BILLARD CLUB SISTERONNAIS"]
["148126 G","CLAUDON PHILIPPE","R2",0.46,0.41,"19056 – BILLARD CLUB DE NICE"]
["187055 W","CORTES JEAN LOUIS","—",1.19,1.06,"19009 – CLUB BILLARD ISTREEN"]
["184548 W","DEBRUYNE ANNE","R2",0.2,0.18,"19106 – BILLARD CLUB VINONNAIS"]
["113220 Q","DEBRUYNE TRISTAN","R2",0.56000000000000005,0.5,"19106 – BILLARD CLUB VINONNAIS"]
["178356 Q","DEBUYSER ANNE","—",0.47,0.42,"19058 – ACADEMIE DE BILLARD DE BARBOSSI MANDELIEU"]
["160334 B","DELAPORTE YVES","R2",0.61,0.54,"19006 – BILLARD CLUB CARPENTRASSIEN"]
["174348 J","DOUSSET RENE","R2",0.54,0.48,"19023 – BILLARD CLUB GARDEEN"]
["140803 N","DREMEAUX JEAN PIERRE","N3",2.14,1.91,"19023 – BILLARD CLUB GARDEEN"]
["163467 G","ELEOUET DANIEL","R1 ",0.81,0.72,"19006 – BILLARD CLUB CARPENTRASSIEN"]
["147622 J","ESTABLIER PIERRE","R2",0.65,0.57999999999999996,"19023 – BILLARD CLUB GARDEEN"]
["022067 T","FERAUD GERARD","N3",2.4900000000000002,2.2200000000000002,"19027 – ACADEMIE DE BILLARD DE BOLLENE"]
["129036 Y","FERHAT ACHOUR","N3 ",1.51,1.35,"19106 – BILLARD CLUB VINONNAIS"]
["013111 H","FERNANDEZ MARC","N3 ",2.6,2.3199999999999998,"19007 – BILLARD CLUB BERROIS"]
["120704 M","FERRE DIDIER","R1",1.2,1.06,"19058 – ACADEMIE DE BILLARD DE BARBOSSI MANDELIEU"]
["122658 Q","FERRO PHILIPPE","R1",1.1100000000000001,0.99,"19009 – CLUB BILLARD ISTREEN"]
["101139 Z","FONTAINE DANY","N1 ","—",1.85,"19106 – BILLARD CLUB VINONNAIS"]
["022084 K","FRANCO ALBERT","R1",1.62,1.44,"19019 – BILLARD CLUB DE LA BAIE"]
["167290 M","FROMEYER CORINNE","R2",0.53,0.47,"19058 – ACADEMIE DE BILLARD DE BARBOSSI MANDELIEU"]
["022092 S","GANTOIS GILLES","N3 ",1.64,1.46,"19016 – BILLARD CLUB ORANGEOIS"]
["116278 G","GAVALDA PIERRE","R1",1.7,1.51,"19006 – BILLARD CLUB CARPENTRASSIEN"]
["163279 C","GELAS BERNARD","R2",0.73,0.65,"19098 – BILLARD CLUB LA FARE"]
["101282 M","GHU GERARD","R1",1,0.89,"19016 – BILLARD CLUB ORANGEOIS"]
["118661 X","GIBARROUX CHRISTOPHE","N3 ",1.46,1.3,"19001 – S. S. A. B. D AIX EN PROVENCE"]
["180514 L","GILLET PHILIPPE","—",0.62,0.55000000000000004,"19058 – ACADEMIE DE BILLARD DE BARBOSSI MANDELIEU"]
["157852 D","GODARD PASCAL","R1",1.42,1.26,"19006 – BILLARD CLUB CARPENTRASSIEN"]
["022129 D","GOUIRAN GEORGES","R1 ",0.68,0.61,"19050 – BILLARD CLUB SAUSSETOIS"]
["154530 S","GUIZELIN PASCAL","R2",0.85,0.76,"19106 – BILLARD CLUB VINONNAIS"]
["119933 V","HERREMAN SERGE","R2",0.79,0.7,"19023 – BILLARD CLUB GARDEEN"]
["172086 A","HUGUET PATRICK","N3 ",2.85,2.54,"19017 – BILLARD CLUB PHOCEEN"]
["181239 Z","IVACHEFF MICHEL","R2",0.89,0.79,"19106 – BILLARD CLUB VINONNAIS"]
["109977 X","LACOSSE JEAN PAUL","R1",1.56,1.39,"19019 – BILLARD CLUB DE LA BAIE"]
["175999 D","LANARI PIERRE","—",0.65,0.57999999999999996,"19056 – BILLARD CLUB DE NICE"]
["181199 F","LANDERECTHE PASCAL","R2",0.69,0.61,"19007 – BILLARD CLUB BERROIS"]
["179135 M","LANDOIS DOMINIQUE","—",0.51,0.46,"19055 – ACADEMIE DE BILLARD DE MENTON"]
["168288 X","LANNURIEN THIERRY","R1",1.62,1.44,"19023 – BILLARD CLUB GARDEEN"]
["187426 Z","LAUDY JEAN","—",0.48,0.43,"19058 – ACADEMIE DE BILLARD DE BARBOSSI MANDELIEU"]
["178352 L","LAUNAY MICHEL","—",0.47,0.42,"19058 – ACADEMIE DE BILLARD DE BARBOSSI MANDELIEU"]
["105373 V","LEDUCQ MORGAN","N3",2.0099999999999998,1.78,"19014 – BILLARD CLUB AVIGNONNAIS"]
["110379 J","LEMARTINET ROBERT","R1",1,0.89,"19019 – BILLARD CLUB DE LA BAIE"]
["104233 Z","LEMIERE JEAN NOEL","—",1.73,1.54,"19023 – BILLARD CLUB GARDEEN"]
["176350 K","LETELLIER ALAIN","R2",0.57999999999999996,0.52,"19090 – BILLARD AMATEUR ROGNAC"]
["184858 H","LEVISTRE ALAIN","—",0.85,0.75,"19014 – BILLARD CLUB AVIGNONNAIS"]
["022209 F","LIEGEOIS DOMINIQUE","N3",1.8,1.6,"19027 – ACADEMIE DE BILLARD DE BOLLENE"]
["186880 F","LUNEAU JEAN CLAUDE","—",1.01,0.89,"19023 – BILLARD CLUB GARDEEN"]
["165843 P","MAGNIER PIERRE","R2",0.45,0.4,"19023 – BILLARD CLUB GARDEEN"]
["164047 M","MARCHAND PHILIPPE","—",0.66,0.59,"19001 – S. S. A. B. D AIX EN PROVENCE"]
["172680 W","MASSIAS GUY","—",0.66,0.59,"19001 – S. S. A. B. D AIX EN PROVENCE"]
["112015 H","MAYNARD ALEXANDRE","R2",0.82,0.73,"19056 – BILLARD CLUB DE NICE"]
["144802 I","MELLET PIERRE","R1",1.19,1.06,"19027 – ACADEMIE DE BILLARD DE BOLLENE"]
["152604 Z","METAIS ALBAN","R1",1.19,1.06,"19006 – BILLARD CLUB CARPENTRASSIEN"]
["022268 M","MOLAND PHILIPPE","R1",1,0.89,"19059 – BILLARD CLUB ROQUEBRUNOIS"]
["022271 P","MONNET JEAN CLAUDE","N3",1.8,1.61,"19021 – BILLARD CLUB CAVAILLONNAIS"]
["136279 N","MONTESINOS GILLES","R2",0.59,0.52,"19012 – SALON BILLARD CLUB"]
["147624 L","MOREELS BERNARD","R1 ",0.81,0.72,"19023 – BILLARD CLUB GARDEEN"]
["151456 B","MOUSSIER PATRICK","R2",0.7,0.63,"19056 – BILLARD CLUB DE NICE"]
["109063 T","MUNOS JEAN","N3 ",1.74,1.55,"19050 – BILLARD CLUB SAUSSETOIS"]
["182190 H","NOSSIN MARC","R2",0.54,0.48,"19058 – ACADEMIE DE BILLARD DE BARBOSSI MANDELIEU"]
["020258 E","OLLIVIER DANIEL","R1 ",0.91,0.81,"19009 – CLUB BILLARD ISTREEN"]
["128468 C","OUDOUX GERARD","R2",0.69,0.61,"19023 – BILLARD CLUB GARDEEN"]
["141673 Z","PELLAT FRANCIS","R1",1.19,1.06,"19025 – BILLARD CLUB SISTERONNAIS"]
["022321 N","PERIS MICHEL","R2",0.39,0.34,"19056 – BILLARD CLUB DE NICE"]
["181624 S","PERRIN LIONEL","R2",0.74,0.66,"19023 – BILLARD CLUB GARDEEN"]
["179183 P","PETIT PHILIPPE","—",0.66,0.59,"19014 – BILLARD CLUB AVIGNONNAIS"]
["112316 W","PIGNATEL FLORENT","N1 ","—",1.72,"19021 – BILLARD CLUB CAVAILLONNAIS"]
["022332 Y","PINNA ALAIN","N1 ","—",1.89,"19017 – BILLARD CLUB PHOCEEN"]
["170697 Q","PORA JEAN PAUL","R2",0.67,0.6,"19009 – CLUB BILLARD ISTREEN"]
["181316 H","PORTET PATRICK","R2",0.66,0.57999999999999996,"19059 – BILLARD CLUB ROQUEBRUNOIS"]
["022346 M","POUGIN JEAN FRANCOIS","R2",0.89,0.8,"19059 – BILLARD CLUB ROQUEBRUNOIS"]
["022347 N","POUJOL JEAN PAUL","R2",0.84,0.75,"19014 – BILLARD CLUB AVIGNONNAIS"]
["144719 D","POULAIN FREDERIC","R1 ",0.51,0.46,"19016 – BILLARD CLUB ORANGEOIS"]
["136544 S","QUEZEL ANDRE","R2",0.64,0.56999999999999995,"19014 – BILLARD CLUB AVIGNONNAIS"]
["022357 X","RAMOND JEAN MARC","R1",1.17,1.04,"19058 – ACADEMIE DE BILLARD DE BARBOSSI MANDELIEU"]
["161645 B","RAUD DANIEL","R1 ",0.98,0.87,"19098 – BILLARD CLUB LA FARE"]
["157788 J","RAVENET FRANCIS","R1",1.33,1.18,"19059 – BILLARD CLUB ROQUEBRUNOIS"]
["022366 G","RIBOLLA PATRICE","R1",1.48,1.32,"19056 – BILLARD CLUB DE NICE"]
["023064 C","RIGOLLET PIERRE","N3 ",2.62,2.33,"19025 – BILLARD CLUB SISTERONNAIS"]
["134183 X","ROBBE RAYMOND","R1 ",0.98,0.87,"19098 – BILLARD CLUB LA FARE"]
["166175 A","RONSAIN JEAN JACQUES","R2",0.87,0.78,"19012 – SALON BILLARD CLUB"]
["101518 O","ROUGON ROBERT","R1",1.6,1.43,"19007 – BILLARD CLUB BERROIS"]
["121397 D","RYCKELYNCK LAURENT","—",1.08,0.96,"19006 – BILLARD CLUB CARPENTRASSIEN"]
["120008 S","SAMUEL CHRISTIAN","R1",1.27,1.1299999999999999,"19023 – BILLARD CLUB GARDEEN"]
["014138 U","SARRALDE LOUIS","R2",0.5,0.44,"19021 – BILLARD CLUB CAVAILLONNAIS"]
["149694 L","SCHAEFER ERNEST ROBERT","R2",0.81,0.72,"19006 – BILLARD CLUB CARPENTRASSIEN"]
["136540 O","SCHENK ROBERT","R2",0.44,0.39,"19056 – BILLARD CLUB DE NICE"]
["168834 Q","SIEGLER JEAN PIERRE","N3 ",1.6,1.42,"19006 – BILLARD CLUB CARPENTRASSIEN"]
["010203 L","SIMON GERARD","R1",1.31,1.1599999999999999,"19014 – BILLARD CLUB AVIGNONNAIS"]
["022412 A","SINANIAN JEAN PAUL","R1",1.59,1.41,"19017 – BILLARD CLUB PHOCEEN"]
["165931 K","SPINNLER JEAN LUC","—",0.92,0.82,"19027 – ACADEMIE DE BILLARD DE BOLLENE"]
["020790 Q","STEINMANN SEBASTIEN","R1",1.28,1.1399999999999999,"19061 – ACAD.BILLARD ST RAPHAEL"]
["022429 R","TARDIEUX LUC","R1",1.47,1.31,"19098 – BILLARD CLUB LA FARE"]
["132938 A","TEYSSIER SERGE","R1",1.22,1.0900000000000001,"19007 – BILLARD CLUB BERROIS"]
["168687 F","THOMAS PHILIPPE","R2",0.62,0.55000000000000004,"19023 – BILLARD CLUB GARDEEN"]
["148252 T","TIMSIT SERGE","R2",0.42,0.37,"19023 – BILLARD CLUB GARDEEN"]
["135554 Q","TORES JEAN LUC","R2 ",1.1499999999999999,1.03,"19009 – CLUB BILLARD ISTREEN"]
["172679 V","TURPIN JEAN","—",0.73,0.65,"19001 – S. S. A. B. D AIX EN PROVENCE"]
["153163 G","VALVERDE JEAN YVES","R2",0.61,0.54,"19023 – BILLARD CLUB GARDEEN"]
["022459 V","VAUTRIN JEAN","R1",1.29,1.1499999999999999,"19056 – BILLARD CLUB DE NICE"]
["147607 S","VIOU GERARD","R1",1.32,1.17,"19098 – BILLARD CLUB LA FARE"]
["138731 V","VISCONTI JEAN","R2",0.91,0.81,"19090 – BILLARD AMATEUR ROGNAC"]
["119674 W","VITALIEN PIERRE","R1",1.21,1.07,"19016 – BILLARD CLUB ORANGEOIS"]
["022476 M","VIVALDI ANDRE","N3 ",2.67,2.37,"19106 – BILLARD CLUB VINONNAIS"]
["154571 M","VUILLAUME JEAN CLAUDE","R2",0.77,0.69,"19056 – BILLARD CLUB DE NICE"]
["152534 Y","WILLAME PHILIPPE","—",0.57999999999999996,0.51,"19001 – S. S. A. B. D AIX EN PROVENCE"]
["184288 N","YVOZ ALAIN","—",0.88,0.79,"19006 – BILLARD CLUB CARPENTRASSIEN"]
["134311 V","ZANDRINO ALAIN","R1",1.1399999999999999,1.01,"19007 – BILLARD CLUB BERROIS"]

{"sheet":"3BANDES","index":4,"n_rows":118,"n_cols":7,"rows_kept":118,"cut":false,"hidden":true,"merged":[[0,0,0,6]]}
["3BANDES\n2024 - MOYENNE EN COUR DE SAISON - 2025"]
["N° LICENCE","NOM PRENOM","CATÉGORIE","MOY 2,80m","MOY 3,10m","CLUB","NC-CL"]
["106287 Z","ABAD YANNICK","N2","—",0.497,"19002 – SPORT AMAT.DE BILLARD MARSEILLAIS"]
["106902 Q","ABEAUZIT JACQUES","N3",0.46600000000000003,0.40100000000000002,"19014 – BILLARD CLUB AVIGNONNAIS"]
["151459 E","ALIBERT BRUNO","—",0.18099999999999999,0.155,"19056 – BILLARD CLUB DE NICE"]
["159130 S","ALVAREZ PHILIPPE","N3",0.42099999999999999,0.36199999999999999,"19056 – BILLARD CLUB DE NICE"]
["155531 F","AMOUROUX LUC","R1",0.28299999999999997,0.24299999999999999,"19023 – BILLARD CLUB GARDEEN"]
["021819 F","ANGUE PATRICK","N1","—",0.70599999999999996,"19056 – BILLARD CLUB DE NICE"]
["021821 H","ANTONIN ALAIN","N3",0.47,0.40400000000000003,"19021 – BILLARD CLUB CAVAILLONNAIS"]
["148204 R","AUBERT ROUECHE LYDIA","R2 ",0.30099999999999999,0.25800000000000001,"19106 – BILLARD CLUB VINONNAIS"]
["021839 Z","AZOULAY ALAIN","N2","—",0.49199999999999999,"19017 – BILLARD CLUB PHOCEEN"]
["115304 U","BAILLON JEAN","R2 ",0.26800000000000002,0.23,"19058 – ACADEMIE DE BILLARD DE BARBOSSI MANDELIEU"]
["153554 G","BALESTRI MAURICE","R1 ",0.23,0.19800000000000001,"19058 – ACADEMIE DE BILLARD DE BARBOSSI MANDELIEU"]
["023184 S","BALLIGAND SERGE","N3",0.39500000000000002,0.34,"19059 – BILLARD CLUB ROQUEBRUNOIS"]
["109917 P","BARBANNEAU FREDERIC","N1","—",0.63100000000000001,"19106 – BILLARD CLUB VINONNAIS"]
["135538 A","BASELGA PASCAL","R1 ",0.43,0.36899999999999999,"19093 – AMERICAN CLUB LOUIS XI"]
["103568 K","BASSOUL JEAN MARIE","R2 ",0.26,0.223,"19006 – BILLARD CLUB CARPENTRASSIEN"]
["159238 K","BENIER PATRICK","R2 ",0.26,0.224,"19023 – BILLARD CLUB GARDEEN"]
["125945 B","BERNAT JEAN PIERRE","R2 ",0.253,0.217,"19023 – BILLARD CLUB GARDEEN"]
["150422 C","BONNEMAISON DENIS","R2 ",0.25800000000000001,0.222,"19009 – CLUB BILLARD ISTREEN"]
["152345 S","BREPSON MARTIAL","N3",0.41799999999999998,0.35899999999999999,"19058 – ACADEMIE DE BILLARD DE BARBOSSI MANDELIEU"]
["144785 R","CAILLAUD DANIEL","R1 ",0.23899999999999999,0.20599999999999999,"19023 – BILLARD CLUB GARDEEN"]
["021944 A","CAO HUU TUOI","R1 ",0.40200000000000002,0.34499999999999997,"19098 – BILLARD CLUB LA FARE"]
["021955 L","CATONI LAURENT","N2","—",0.52500000000000002,"19014 – BILLARD CLUB AVIGNONNAIS"]
["122456 W","CHARBAUT CLAUDE","R1",0.27500000000000002,0.23599999999999999,"19059 – BILLARD CLUB ROQUEBRUNOIS"]
["021967 X","CHARBIT JEAN MARC","N1","—",0.72199999999999998,"19056 – BILLARD CLUB DE NICE"]
["012782 Q","CHASTAN GEORGES","N3",0.432,0.371,"19021 – BILLARD CLUB CAVAILLONNAIS"]
["187031 V","CHEURF SELIMANE","—",0.23100000000000001,0.19900000000000001,"19090 – BILLARD AMATEUR ROGNAC"]
["108854 S","CHUZEVILLE GILLES","N2 ","—",0.439,"19025 – BILLARD CLUB SISTERONNAIS"]
["129497 R","CLEMENT GERARD","N3",0.371,0.31900000000000001,"19050 – BILLARD CLUB SAUSSETOIS"]
["012827 J","COHEN RICHARD","R1 ",0.22500000000000001,0.193,"19058 – ACADEMIE DE BILLARD DE BARBOSSI MANDELIEU"]
["125938 U","COSTE PHILIPPE","N3",0.44700000000000001,0.38400000000000001,"19061 – ACAD.BILLARD ST RAPHAEL"]
["119932 U","COUPET PHILIPPE","N1","—",0.6,"19023 – BILLARD CLUB GARDEEN"]
["022003 H","DAMON OLIVIER","N1 ","—",0.53100000000000003,"19012 – SALON BILLARD CLUB"]
["014828 I","DAUPHIN MICHEL","N1","—",0.70399999999999996,"19014 – BILLARD CLUB AVIGNONNAIS"]
["140113 Z","DE HAAN PATRICK","N1 ","—",0.55000000000000004,"19023 – BILLARD CLUB GARDEEN"]
["177233 V","DEDON RICHARD","R2 ",0.26100000000000001,0.224,"19007 – BILLARD CLUB BERROIS"]
["112719 J","DELBEY JULIEN","N2","—",0.503,"19012 – SALON BILLARD CLUB"]
["109528 Q","DI CRESCENZO PIERRE","N3 ",0.29099999999999998,0.25,"19017 – BILLARD CLUB PHOCEEN"]
["022039 R","DOS SANTOS FRANCIS","N2 ","—",0.40600000000000003,"19050 – BILLARD CLUB SAUSSETOIS"]
["174348 J","DOUSSET RENE","R2",0.151,0.13,"19023 – BILLARD CLUB GARDEEN"]
["013022 W","DUBREUIL FRANCK","N2 ","—",0.42399999999999999,"19061 – ACAD.BILLARD ST RAPHAEL"]
["102285 B","DUSSAULE PIERRE","N3",0.41399999999999998,0.35599999999999998,"19027 – ACADEMIE DE BILLARD DE BOLLENE"]
["175172 E","DUVAL THIERRY","R1",0.32600000000000001,0.28000000000000003,"19061 – ACAD.BILLARD ST RAPHAEL"]
["163467 G","ELEOUET DANIEL","N3 ",0.32100000000000001,0.27600000000000002,"19006 – BILLARD CLUB CARPENTRASSIEN"]
["147622 J","ESTABLIER PIERRE","R2",0.21299999999999999,0.183,"19023 – BILLARD CLUB GARDEEN"]
["022061 N","FAIVRE D ARCIER PATRICK","N1","—",0.63,"19056 – BILLARD CLUB DE NICE"]
["013111 H","FERNANDEZ MARC","N3",0.39500000000000002,0.34,"19007 – BILLARD CLUB BERROIS"]
["122658 Q","FERRO PHILIPPE","R1 ",0.23300000000000001,0.2,"19009 – CLUB BILLARD ISTREEN"]
["101139 Z","FONTAINE DANY","N2","—",0.502,"19106 – BILLARD CLUB VINONNAIS"]
["167290 M","FROMEYER CORINNE","R2",0.125,0.107,"19058 – ACADEMIE DE BILLARD DE BARBOSSI MANDELIEU"]
["022091 R","GALLUCCI STEPHANE","N1","—",0.65300000000000002,"19056 – BILLARD CLUB DE NICE"]
["118661 X","GIBARROUX CHRISTOPHE","R1 ",0.39400000000000002,0.33900000000000002,"19001 – S. S. A. B. D AIX EN PROVENCE"]
["181920 P","GOAILLARD JEAN MARC","—",0.38400000000000001,0.33,"19017 – BILLARD CLUB PHOCEEN"]
["157852 D","GODARD PASCAL","R1",0.34799999999999998,0.29899999999999999,"19006 – BILLARD CLUB CARPENTRASSIEN"]
["119933 V","HERREMAN SERGE","R1",0.29899999999999999,0.25700000000000001,"19023 – BILLARD CLUB GARDEEN"]
["172086 A","HUGUET PATRICK","N2 ","—",0.41599999999999998,"19017 – BILLARD CLUB PHOCEEN"]
["172214 P","IDJERI GILBERT","—",0.376,0.32400000000000001,"19050 – BILLARD CLUB SAUSSETOIS"]
["016084 Q","LANDE GERARD","N2","—",0.45100000000000001,"19014 – BILLARD CLUB AVIGNONNAIS"]
["181199 F","LANDERECTHE PASCAL","R2 ",0.32,0.27500000000000002,"19007 – BILLARD CLUB BERROIS"]
["141504 M","LECOQ ARNAUD","N3",0.40500000000000003,0.34799999999999998,"19012 – SALON BILLARD CLUB"]
["105373 V","LEDUCQ MORGAN","N1 ","—",0.59,"19014 – BILLARD CLUB AVIGNONNAIS"]
["176350 K","LETELLIER ALAIN","—",0.14499999999999999,0.124,"19090 – BILLARD AMATEUR ROGNAC"]
["186880 F","LUNEAU JEAN CLAUDE","—",0.51800000000000002,0.44500000000000001,"19023 – BILLARD CLUB GARDEEN"]
["022223 T","MACQUET PATRICK","N1","—",0.85899999999999999,"19056 – BILLARD CLUB DE NICE"]
["165843 P","MAGNIER PIERRE","R2",0.11899999999999999,0.10199999999999999,"19023 – BILLARD CLUB GARDEEN"]
["103581 X","MASSERAN PHILIPPE","N1 ","—",0.56299999999999994,"19058 – ACADEMIE DE BILLARD DE BARBOSSI MANDELIEU"]
["172680 W","MASSIAS GUY","—",0.30299999999999999,0.26,"19001 – S. S. A. B. D AIX EN PROVENCE"]
["152604 Z","METAIS ALBAN","R1",0.35299999999999998,0.30299999999999999,"19006 – BILLARD CLUB CARPENTRASSIEN"]
["022268 M","MOLAND PHILIPPE","R1",0.27500000000000002,0.23599999999999999,"19059 – BILLARD CLUB ROQUEBRUNOIS"]
["022271 P","MONNET JEAN CLAUDE","N2","—",0.52300000000000002,"19021 – BILLARD CLUB CAVAILLONNAIS"]
["147624 L","MOREELS BERNARD","—",0.14299999999999999,0.123,"19023 – BILLARD CLUB GARDEEN"]
["151456 B","MOUSSIER PATRICK","—",0.125,0.107,"19056 – BILLARD CLUB DE NICE"]
["109063 T","MUNOS JEAN","N3",0.47699999999999998,0.41,"19050 – BILLARD CLUB SAUSSETOIS"]
["132351 L","N GUYEN NGA","N3 ",0.55400000000000005,0.47699999999999998,"19056 – BILLARD CLUB DE NICE"]
["141788 K","N GUYEN VAN DUC MAX","R1 ",0.221,0.19,"19007 – BILLARD CLUB BERROIS"]
["107263 N","NASICA PATRICK","N3",0.42499999999999999,0.36599999999999999,"19014 – BILLARD CLUB AVIGNONNAIS"]
["183754 H","NGUYEN PAUL","R1",0.29599999999999999,0.255,"19055 – ACADEMIE DE BILLARD DE MENTON"]
["020258 E","OLLIVIER DANIEL","R1",0.27800000000000002,0.23899999999999999,"19009 – CLUB BILLARD ISTREEN"]
["141673 Z","PELLAT FRANCIS","R1",0.32100000000000001,0.27600000000000002,"19025 – BILLARD CLUB SISTERONNAIS"]
["013896 M","PEREIRA CHARLES","N1 ","—",0.55500000000000005,"19023 – BILLARD CLUB GARDEEN"]
["022321 N","PERIS MICHEL","R2",0.111,9.6000000000000002E-2,"19056 – BILLARD CLUB DE NICE"]
["179183 P","PETIT PHILIPPE","R2",0.158,0.13600000000000001,"19014 – BILLARD CLUB AVIGNONNAIS"]
["022330 W","PIELIN PASCAL","N2 ","—",0.38400000000000001,"19012 – SALON BILLARD CLUB"]
["112316 W","PIGNATEL FLORENT","N1","—",0.625,"19021 – BILLARD CLUB CAVAILLONNAIS"]
["105404 A","PINARD PATRICE","N1","—",0.71,"19012 – SALON BILLARD CLUB"]
["022332 Y","PINNA ALAIN","N2 ","—",0.63100000000000001,"19017 – BILLARD CLUB PHOCEEN"]
["108010 G","POIRIER DOMINIQUE","R1 ",0.248,0.21299999999999999,"19061 – ACAD.BILLARD ST RAPHAEL"]
["170697 Q","PORA JEAN PAUL","R1",0.30199999999999999,0.25900000000000001,"19009 – CLUB BILLARD ISTREEN"]
["181316 H","PORTET PATRICK","R2",0.152,0.13100000000000001,"19059 – BILLARD CLUB ROQUEBRUNOIS"]
["022347 N","POUJOL JEAN PAUL","R1 ",0.23899999999999999,0.20499999999999999,"19014 – BILLARD CLUB AVIGNONNAIS"]
["144719 D","POULAIN FREDERIC","R1 ",0.23400000000000001,0.20100000000000001,"19016 – BILLARD CLUB ORANGEOIS"]
["022349 P","POZNANSKI JEAN MICHEL","N3 ",0.61,0.52500000000000002,"19012 – SALON BILLARD CLUB"]
["022357 X","RAMOND JEAN MARC","R1",0.30499999999999999,0.26200000000000001,"19058 – ACADEMIE DE BILLARD DE BARBOSSI MANDELIEU"]
["136205 R","RANC ALAIN","R1",0.29599999999999999,0.254,"19027 – ACADEMIE DE BILLARD DE BOLLENE"]
["119696 S","REVALOR MICHEL","R1 ",0.17499999999999999,0.15,"19050 – BILLARD CLUB SAUSSETOIS"]
["022372 M","RIGNOLS PHILIPPE","N3",0.435,0.374,"19021 – BILLARD CLUB CAVAILLONNAIS"]
["166175 A","RONSAIN JEAN JACQUES","R1",0.35599999999999998,0.30599999999999999,"19012 – SALON BILLARD CLUB"]
["136546 U","SALAMA ALAIN","N3 ",0.32200000000000001,0.27700000000000002,"19021 – BILLARD CLUB CAVAILLONNAIS"]
["175174 G","SALES THIERRY","R1 ",0.23300000000000001,0.2,"19061 – ACAD.BILLARD ST RAPHAEL"]
["022391 F","SANTIAGO JEAN JOSEPH","N2","—",0.56100000000000005,"19050 – BILLARD CLUB SAUSSETOIS"]
["014138 U","SARRALDE LOUIS","R1",0.255,0.22,"19021 – BILLARD CLUB CAVAILLONNAIS"]
["186195 L","SAVI OLIVIER","—",0.24399999999999999,0.21,"19050 – BILLARD CLUB SAUSSETOIS"]
["168834 Q","SIEGLER JEAN PIERRE","—",0.23899999999999999,0.20499999999999999,"19006 – BILLARD CLUB CARPENTRASSIEN"]
["010203 L","SIMON GERARD","N3",0.39800000000000002,0.34200000000000003,"19014 – BILLARD CLUB AVIGNONNAIS"]
["022412 A","SINANIAN JEAN PAUL","N3",0.47699999999999998,0.41,"19017 – BILLARD CLUB PHOCEEN"]
["020790 Q","STEINMANN SEBASTIEN","N3 ",0.27300000000000002,0.23400000000000001,"19061 – ACAD.BILLARD ST RAPHAEL"]
["133907 H","TARDY JEAN CLAUDE","R2",0.19800000000000001,0.17,"19014 – BILLARD CLUB AVIGNONNAIS"]
["187563 Y","UNVER BURHAN","—",0.67100000000000004,0.57699999999999996,"19002 – SPORT AMAT.DE BILLARD MARSEILLAIS"]
["153163 G","VALVERDE JEAN YVES","—",0.19,0.16300000000000001,"19023 – BILLARD CLUB GARDEEN"]
["022459 V","VAUTRIN JEAN","N3 ",0.58799999999999997,0.505,"19056 – BILLARD CLUB DE NICE"]
["148051 A","VIERA MAIA ARLINDO","N2","—",0.52200000000000002,"19061 – ACAD.BILLARD ST RAPHAEL"]
["132515 T","VO DANG HUY","N1 ","—",1.056,"19056 – BILLARD CLUB DE NICE"]
["154571 M","VUILLAUME JEAN CLAUDE","R2",0.184,0.158,"19056 – BILLARD CLUB DE NICE"]
["117872 O","WARLET JEAN CLAUDE","N2","—",0.47,"19061 – ACAD.BILLARD ST RAPHAEL"]
["184288 N","YVOZ ALAIN","R1 ",0.39200000000000002,0.33700000000000002,"19006 – BILLARD CLUB CARPENTRASSIEN"]
["144788 U","ZOPPI AIME","N3 ",0.308,0.26500000000000001,"19106 – BILLARD CLUB VINONNAIS"]
["125457 H","ZOPPI CEDRIC","N1 ","—",0.99199999999999999,"19106 – BILLARD CLUB VINONNAIS"]

{"sheet":"DONNEES","index":5,"n_rows":877,"n_cols":3,"rows_kept":877,"cut":false,"hidden":true,"merged":[[0,0,0,2]]}
["DONNEES\n2025- EN COUR DE SAISON - 2026"]
["N° LICENCE","NOM PRENOM","CLUB"]
["147448V","AGNES ALEXANDRE","19127 O CIGALON BILLARD CLUB"]
["146637X","AGOPIAN VICTOR","19050 BILLARD CLUB SAUSSETOIS"]
["021810W","AKNIN GABRIEL","19027 ACADEMIE DE BILLARD DE BOLLENE"]
["147980Y","AKTAS JEAN","19112 NISSA BILLARD CLUB"]
["149448T","ALESSI JEAN PIERRE","19023 BILLARD CLUB GARDEEN"]
["151459E","ALIBERT BRUNO","19056 BILLARD CLUB DE NICE"]
["175471E","ALLAIN MAURICE","19068 BILLARD CLUB ARLESIEN"]
["132516U","ALLAL SOUHIL","19130 BLACK BALL CAVAILLONNAIS"]
["157036R","ALLIGIER GERARD","19019 BILLARD CLUB DE LA BAIE"]
["186296W","ALLORGE STEPHANE","19009 CLUB BILLARD ISTREEN"]
["171073Z","ALLOUCHE JACQUELINE","19008 BRITISH BILLARD CLUB AVIGNON"]
["159130S","ALVAREZ PHILIPPE","19056 BILLARD CLUB DE NICE"]
["152035F","ALVISET GUY","19050 BILLARD CLUB SAUSSETOIS"]
["177854V","AMANS HERVE","19009 CLUB BILLARD ISTREEN"]
["186456V","AMMARI ANAS","19002 SPORT AMAT.DE BILLARD MARSEILLAIS"]
["162879S","AMOUROUX JACQUES ANTOINE","19023 BILLARD CLUB GARDEEN"]
["155531F","AMOUROUX LUC","19023 BILLARD CLUB GARDEEN"]
["188650E","ANDRE ENZO","19130 BLACK BALL CAVAILLONNAIS"]
["174675P","ANDRE LONI","19130 BLACK BALL CAVAILLONNAIS"]
["153111A","ANDRIEUX STEPHANE","19068 BILLARD CLUB ARLESIEN"]
["021818E","ANDRY JEAN FRANCOIS","19090 BILLARD AMATEUR ROGNAC"]
["021819F","ANGUE PATRICK","19056 BILLARD CLUB DE NICE"]
["021820G","ANNESTAY JACQUES","19025 BILLARD CLUB SISTERONNAIS"]
["021821H","ANTONIN ALAIN","19021 BILLARD CLUB CAVAILLONNAIS"]
["021824K","ARBAUD STEPHANE","19112 NISSA BILLARD CLUB"]
["181505N","ARENAS ROLDAN","19055 ACADEMIE DE BILLARD DE MENTON"]
["126179B","ARGENTIN JEAN NOEL","19127 O CIGALON BILLARD CLUB"]
["161785D","ARMENGAU PHILIPPE","19056 BILLARD CLUB DE NICE"]
["021827N","ARNAUD JEAN","19021 BILLARD CLUB CAVAILLONNAIS"]
["122035R","ARNAUD PIERRE","19006 BILLARD CLUB CARPENTRASSIEN"]
["169931H","ARNOULD LOIC","19068 BILLARD CLUB ARLESIEN"]
["180272Y","ARNOUX LAURENT","19058 ACADEMIE DE BILLARD DE BARBOSSI MANDELIEU"]
["022383 X","AUBERT ROUECHE ERIC","12023 – BILLARD CLUB GRENOBLOIS"]
["148204R","AUBERT ROUECHE LYDIA","19106 BILLARD CLUB VINONNAIS"]
["106513R","AUDIBERT JEAN PIERRE","19012 SALON BILLARD CLUB"]
["172643F","AUTRAND MICHEL","19001 S. S. A. B. D AIX EN PROVENCE"]
["182109V","AVRIL RICHARD","19008 BRITISH BILLARD CLUB AVIGNON"]
["012464K","AZERAD HUGO","19058 ACADEMIE DE BILLARD DE BARBOSSI MANDELIEU"]
["021839Z","AZOULAY ALAIN","19017 BILLARD CLUB PHOCEEN"]
["174115F","BACHERGIAN MAXENCE","19002 SPORT AMAT.DE BILLARD MARSEILLAIS"]
["115304U","BAILLON JEAN","19058 ACADEMIE DE BILLARD DE BARBOSSI MANDELIEU"]
["183850M","BAJEUX JEAN LOUIS","19090 BILLARD AMATEUR ROGNAC"]
["153554G","BALESTRI MAURICE","19058 ACADEMIE DE BILLARD DE BARBOSSI MANDELIEU"]
["186655L","BALLAIS REMI","19017 BILLARD CLUB PHOCEEN"]
["023184S","BALLIGAND SERGE","19059 BILLARD CLUB ROQUEBRUNOIS"]
["021842C","BANCEL MARCEL","19056 BILLARD CLUB DE NICE"]
["149693K","BANO SERGE","19001 S. S. A. B. D AIX EN PROVENCE"]
["109917P","BARBANNEAU FREDERIC","19106 BILLARD CLUB VINONNAIS"]
["159734Z","BARBE CLOTILDE","19127 O CIGALON BILLARD CLUB"]
["168289Y","BARBESANT DIDIER","19058 ACADEMIE DE BILLARD DE BARBOSSI MANDELIEU"]
["018535X","BARDET JEAN PIERRE","19023 BILLARD CLUB GARDEEN"]
["177120X","BARNES JEAN PIERRE","19009 CLUB BILLARD ISTREEN"]
["174346G","BAROTH DARIO","19127 O CIGALON BILLARD CLUB"]
["174347H","BAROTH LOEVA","19127 O CIGALON BILLARD CLUB"]
["122300W","BARRALLON JEAN PAUL","19023 BILLARD CLUB GARDEEN"]
["179073V","BARTHE CHANTAL","19090 BILLARD AMATEUR ROGNAC"]
["135538A","BASELGA PASCAL","19093 AMERICAN CLUB LOUIS XI"]
["129911P","BASSIGNANA ROBERT","19023 BILLARD CLUB GARDEEN"]
["103568K","BASSOUL JEAN MARIE","19006 BILLARD CLUB CARPENTRASSIEN"]
["188648C","BAUDOIN PIERRE","19056 BILLARD CLUB DE NICE"]
["164877P","BAUDOUX JEAN CLAUDE","19058 ACADEMIE DE BILLARD DE BARBOSSI MANDELIEU"]
["021860U","BAYARD JEAN CLAUDE","19021 BILLARD CLUB CAVAILLONNAIS"]
["021861V","BAYLE PASCAL","19090 BILLARD AMATEUR ROGNAC"]
["184968C","BEAUBREUIL CYNTHIA","19008 BRITISH BILLARD CLUB AVIGNON"]
["182453T","BEAUCHANT FABRICE","19131 BILLARD CLUB DE L ESTAGNOL"]
["011797T","BECK MICHEL","19061 ACAD.BILLARD ST RAPHAEL"]
["177453J","BECKER GERARD","19023 BILLARD CLUB GARDEEN"]
["170823C","BEDARIDE NICOLAS","19002 SPORT AMAT.DE BILLARD MARSEILLAIS"]
["021863X","BEDOC JACQUES","19007 BILLARD CLUB BERROIS"]
["175776L","BELAICH EDOUARD","19017 BILLARD CLUB PHOCEEN"]
["021865Z","BELHASSEN BENJAMIN","19112 NISSA BILLARD CLUB"]
["182588Q","BELINGUIER MAXIME","19002 SPORT AMAT.DE BILLARD MARSEILLAIS"]
["188404M","BELLANGER UYANGAMAA","19130 BLACK BALL CAVAILLONNAIS"]
["179822J","BELLEY AXEL","19068 BILLARD CLUB ARLESIEN"]
["132789H","BELTRITTI JEAN YVES","19106 BILLARD CLUB VINONNAIS"]
["021874I","BENAMOU EMILE","19014 BILLARD CLUB AVIGNONNAIS"]
["021872G","BENAVIDES CLAUDE","19012 SALON BILLARD CLUB"]
["138275H","BENAVIDES GERARD","19012 SALON BILLARD CLUB"]
["124802C","BENDAVID KARINE","19112 NISSA BILLARD CLUB"]
["160341J","BENHAMOU ALEXIS","19001 S. S. A. B. D AIX EN PROVENCE"]
["159238K","BENIER PATRICK","19023 BILLARD CLUB GARDEEN"]
["159790K","BENOIT MICHEL","19027 ACADEMIE DE BILLARD DE BOLLENE"]
["160011A","BENSAID NOEL","19138 BILLARD CLUB FREJUSSIEN"]
["151532J","BERLIOZ PASCAL","19006 BILLARD CLUB CARPENTRASSIEN"]
["153662Z","BERNABEI ROBERT","19093 AMERICAN CLUB LOUIS XI"]
["125945B","BERNAT JEAN PIERRE","19023 BILLARD CLUB GARDEEN"]
["115001D","BERNICHON PASCAL","19127 O CIGALON BILLARD CLUB"]
["184969D","BERNIER JEROME","19008 BRITISH BILLARD CLUB AVIGNON"]
["128718S","BERTHIER JEROME","19127 O CIGALON BILLARD CLUB"]
["180334Q","BETTONI GILLES","19058 ACADEMIE DE BILLARD DE BARBOSSI MANDELIEU"]
["185107D","BEZEAU PIERRE","19059 BILLARD CLUB ROQUEBRUNOIS"]
["159202W","BIARD ANDRE","19009 CLUB BILLARD ISTREEN"]
["173584D","BIARD ARTHUR","19009 CLUB BILLARD ISTREEN"]
["173583C","BIARD NOAH","19009 CLUB BILLARD ISTREEN"]
["125917Z","BIDDAU FRANCOIS","19009 CLUB BILLARD ISTREEN"]
["183516Z","BIOT ELODIE","19058 ACADEMIE DE BILLARD DE BARBOSSI MANDELIEU"]
["179744Z","BLANC SANTELLI ERIC","19009 CLUB BILLARD ISTREEN"]
["010403D","BLANCA JOAQUIM","19131 BILLARD CLUB DE L ESTAGNOL"]
["181218B","BLANCA LEO","19131 BILLARD CLUB DE L ESTAGNOL"]
["114819D","BOAZIZ JORDAN","19008 BRITISH BILLARD CLUB AVIGNON"]
["169485Y","BOCCHETTA ERIC","19093 AMERICAN CLUB LOUIS XI"]
["181202J","BOGGIO POLA PIERRE","19007 BILLARD CLUB BERROIS"]
["175504Q","BOLLOTTE BENIGNE","19023 BILLARD CLUB GARDEEN"]
["186460Z","BONACCORSI LORENZO","19002 SPORT AMAT.DE BILLARD MARSEILLAIS"]
["021894C","BONELLO LUCIEN","19090 BILLARD AMATEUR ROGNAC"]
["186374F","BONETTO JEAN LOUIS","19050 BILLARD CLUB SAUSSETOIS"]
["150422C","BONNEMAISON DENIS","19009 CLUB BILLARD ISTREEN"]
["168593D","BONNICI ROGER","19017 BILLARD CLUB PHOCEEN"]
["187537V","BONTEMPS PAUL","19001 S. S. A. B. D AIX EN PROVENCE"]
["021900I","BONTOUX MAX","19007 BILLARD CLUB BERROIS"]
["125957N","BOPEA CHRISTIAN","19127 O CIGALON BILLARD CLUB"]
["149287T","BORDES BERNARD","19061 ACAD.BILLARD ST RAPHAEL"]
["149288V","BORDES CATHERINE","19061 ACAD.BILLARD ST RAPHAEL"]
["184114Z","BORGNA GUY","19001 S. S. A. B. D AIX EN PROVENCE"]
["118781N","BORNMANN ROBERT","19017 BILLARD CLUB PHOCEEN"]
["179097W","BORTOT BENJAMIN","19017 BILLARD CLUB PHOCEEN"]
["160000N","BOSSOT JEAN","19027 ACADEMIE DE BILLARD DE BOLLENE"]
["160800H","BOTREAU LAURENT","19068 BILLARD CLUB ARLESIEN"]
["187523E","BOUCHAOUATA MAROUANE","19002 SPORT AMAT.DE BILLARD MARSEILLAIS"]
["182430T","BOUFFLET THIERRY","19025 BILLARD CLUB SISTERONNAIS"]
["012645J","BOULANDET ALAIN","19055 ACADEMIE DE BILLARD DE MENTON"]
["155529D","BOULANT CLAUDE","19019 BILLARD CLUB DE LA BAIE"]
["188448K","BOULKANE IMENE","19017 BILLARD CLUB PHOCEEN"]
["187028R","BOUNOUAR BADR","19002 SPORT AMAT.DE BILLARD MARSEILLAIS"]
["021911T","BOURDELLES LAURENT","19055 ACADEMIE DE BILLARD DE MENTON"]
["122662U","BOUTILLE NICOLAS","19027 ACADEMIE DE BILLARD DE BOLLENE"]
["125921D","BOUTTIER CAROLINE","19127 O CIGALON BILLARD CLUB"]
["118665B","BOUTTIER CHARLES","19056 BILLARD CLUB DE NICE"]
["188887M","BOUZIANI NIZAR","19002 SPORT AMAT.DE BILLARD MARSEILLAIS"]
["016411F","BRAYER DENIS","19008 BRITISH BILLARD CLUB AVIGNON"]
["021918A","BREDAT RENE","19025 BILLARD CLUB SISTERONNAIS"]
["159347D","BREGRE SEBASTIEN","19002 SPORT AMAT.DE BILLARD MARSEILLAIS"]
["152345S","BREPSON MARTIAL","19058 ACADEMIE DE BILLARD DE BARBOSSI MANDELIEU"]
["021919B","BRESSE JEAN LOUIS","19016 BILLARD CLUB ORANGEOIS"]
["172527E","BRETON LUC","19006 BILLARD CLUB CARPENTRASSIEN"]
["113104E","BRIAND ALAIN","19002 SPORT AMAT.DE BILLARD MARSEILLAIS"]
["188888N","BRIDGE JEREMY","19002 SPORT AMAT.DE BILLARD MARSEILLAIS"]
["021920C","BRIOIT DOMINIQUE","19055 ACADEMIE DE BILLARD DE MENTON"]
["021922E","BRIOSNE PASCAL","19001 S. S. A. B. D AIX EN PROVENCE"]
["188527W","BROUILLET PATRICE","19017 BILLARD CLUB PHOCEEN"]
["186325C","BROYER PHILIPPE","19127 O CIGALON BILLARD CLUB"]
["114733V","BRUANT SYLVAIN","19016 BILLARD CLUB ORANGEOIS"]
["021929L","BRUN ROGER","19017 BILLARD CLUB PHOCEEN"]
["187403Z","BUCUD ALEC","19112 NISSA BILLARD CLUB"]
["021933P","BUFFARD JEAN","19016 BILLARD CLUB ORANGEOIS"]
["117642S","BUFFART MICHELE","19009 CLUB BILLARD ISTREEN"]
["123684C","BURGANT JEAN MARIE","19019 BILLARD CLUB DE LA BAIE"]
["106916E","CABAUD MICKAEL","19068 BILLARD CLUB ARLESIEN"]
["184127N","CACHAU HERREICCHT LAURENT","19023 BILLARD CLUB GARDEEN"]
["112311R","CACHO DIDIER","19098 BILLARD CLUB LA FARE"]
["144785R","CAILLAUD DANIEL","19023 BILLARD CLUB GARDEEN"]
["021938U","CALDERON LUC","19009 CLUB BILLARD ISTREEN"]
["159692D","CANAL FRANCOIS","19009 CLUB BILLARD ISTREEN"]
["163016R","CANDA JEROME","19130 BLACK BALL CAVAILLONNAIS"]
["181817C","CANUEL LUC","19127 O CIGALON BILLARD CLUB"]
["173582B","CAO GAUTIER","19098 BILLARD CLUB LA FARE"]
["021944A","CAO HUU TUOI","19098 BILLARD CLUB LA FARE"]
["173581A","CAO MEGANE","19098 BILLARD CLUB LA FARE"]
["188316R","CAPALDO BASTIEN","19068 BILLARD CLUB ARLESIEN"]
["146885L","CARAIL MICHEL","19021 BILLARD CLUB CAVAILLONNAIS"]
["183199E","CARAMELLO THOMAS","19131 BILLARD CLUB DE L ESTAGNOL"]
["021946C","CARDINALI DENIS","19056 BILLARD CLUB DE NICE"]
["179685K","CARLES MICHEL","19014 BILLARD CLUB AVIGNONNAIS"]
["141066Q","CARRILLON MICHEL","19001 S. S. A. B. D AIX EN PROVENCE"]
["130701Z","CARRION JEAN PHILIPPE","19058 ACADEMIE DE BILLARD DE BARBOSSI MANDELIEU"]
["188647B","CASTELLI BERNARD","19056 BILLARD CLUB DE NICE"]
["181424A","CASTELLINO GEORGES","19061 ACAD.BILLARD ST RAPHAEL"]
["167180S","CATELAS JEAN LOUIS","19001 S. S. A. B. D AIX EN PROVENCE"]
["021955L","CATONI LAURENT","19014 BILLARD CLUB AVIGNONNAIS"]
["170688F","CAUDRY ALAIN","19023 BILLARD CLUB GARDEEN"]
["118684U","CESARO JEAN CLAUDE","19007 BILLARD CLUB BERROIS"]
["119681D","CESMAT BELLIARD NICOLAS","19127 O CIGALON BILLARD CLUB"]
["172215Q","CHABOT ALAIN","19061 ACAD.BILLARD ST RAPHAEL"]
["161620Z","CHABOUD JACQUES","19023 BILLARD CLUB GARDEEN"]
["021960Q","CHAIX JOEL","19025 BILLARD CLUB SISTERONNAIS"]
["170684B","CHAMPIGNE FRANCOISE","19014 BILLARD CLUB AVIGNONNAIS"]
["143166K","CHANTEUX ALAIN","19025 BILLARD CLUB SISTERONNAIS"]
["186206Y","CHANU ALICE","19025 BILLARD CLUB SISTERONNAIS"]
["104469B","CHAPUIS ERIC","19056 BILLARD CLUB DE NICE"]
["122456W","CHARBAUT CLAUDE","19059 BILLARD CLUB ROQUEBRUNOIS"]
["021967X","CHARBIT JEAN MARC","19056 BILLARD CLUB DE NICE"]
["103539H","CHARLES CHRISTOPHE","19131 BILLARD CLUB DE L ESTAGNOL"]
["187590C","CHARMENSAT JEAN PIERRE","19068 BILLARD CLUB ARLESIEN"]
["185636D","CHARPENTIER MARC","19017 BILLARD CLUB PHOCEEN"]
["012782Q","CHASTAN GEORGES","19021 BILLARD CLUB CAVAILLONNAIS"]
["146376W","CHELUS ALIN","19127 O CIGALON BILLARD CLUB"]
["137581P","CHEMLA ELIE","19014 BILLARD CLUB AVIGNONNAIS"]
["187031V","CHEURF SELIMANE","19090 BILLARD AMATEUR ROGNAC"]
["185638F","CHEVENIER PASCAL","19017 BILLARD CLUB PHOCEEN"]
["152831W","CHEVRIER CAMILLE","19131 BILLARD CLUB DE L ESTAGNOL"]
["160332Z","CHICARD ALAIN","19006 BILLARD CLUB CARPENTRASSIEN"]
["188020V","CHOLET PHILIPPE","19061 ACAD.BILLARD ST RAPHAEL"]
["108854S","CHUZEVILLE GILLES","19025 BILLARD CLUB SISTERONNAIS"]
["135160M","CIAMPI REMI","19008 BRITISH BILLARD CLUB AVIGNON"]
["015068O","CLAUDEPIERRE JEAN MARIE","19056 BILLARD CLUB DE NICE"]
["148126G","CLAUDON PHILIPPE","19056 BILLARD CLUB DE NICE"]
["129497R","CLEMENT GERARD","19050 BILLARD CLUB SAUSSETOIS"]
["101474W","CLERGET JEAN LOUIS","19127 O CIGALON BILLARD CLUB"]
["152107J","CLOUD TOM","19127 O CIGALON BILLARD CLUB"]
["106896K","CLUS SANDY","19138 BILLARD CLUB FREJUSSIEN"]
["012827J","COHEN RICHARD","19058 ACADEMIE DE BILLARD DE BARBOSSI MANDELIEU"]
["148796K","COHEN RICHARD","19056 BILLARD CLUB DE NICE"]
["170613Z","COHEN STEPHANE","19058 ACADEMIE DE BILLARD DE BARBOSSI MANDELIEU"]
["162563Z","COIGNARD CEDRIC","19008 BRITISH BILLARD CLUB AVIGNON"]
["177991T","COLIN PHILIPPE","19017 BILLARD CLUB PHOCEEN"]
["175623V","COLOMBANI PHILIPPE","19056 BILLARD CLUB DE NICE"]
["186457W","COLOMBINI ALAIN","19002 SPORT AMAT.DE BILLARD MARSEILLAIS"]
["178799X","CONFAVREUX KELIAN","19130 BLACK BALL CAVAILLONNAIS"]
["166177C","CONTRAIN JEROME","19012 SALON BILLARD CLUB"]
["021985P","COPPIN JEAN MICHEL","19027 ACADEMIE DE BILLARD DE BOLLENE"]
["021987R","CORBET LAURENT","19021 BILLARD CLUB CAVAILLONNAIS"]
["164007T","CORBIN LUC","19023 BILLARD CLUB GARDEEN"]
["185390L","CORNET MARIELLE","19059 BILLARD CLUB ROQUEBRUNOIS"]
["101480C","CORSALETTI ROBERTO","19068 BILLARD CLUB ARLESIEN"]
["187055W","CORTES JEAN LOUIS","19009 CLUB BILLARD ISTREEN"]
["125938U","COSTE PHILIPPE","19061 ACAD.BILLARD ST RAPHAEL"]
["101268Y","COTARD SANDRINE","19131 BILLARD CLUB DE L ESTAGNOL"]
["139655J","COTTET JACQUES","19025 BILLARD CLUB SISTERONNAIS"]
["119932U","COUPET PHILIPPE","19023 BILLARD CLUB GARDEEN"]
["016838Q","COURBOT LUDWIG","19001 S. S. A. B. D AIX EN PROVENCE"]
["168685D","COZETTE SYLVIE","19023 BILLARD CLUB GARDEEN"]
["021996A","CREUZOT PATRICE","19017 BILLARD CLUB PHOCEEN"]
["152067Q","CROUZET JEAN ANDRE","19027 ACADEMIE DE BILLARD DE BOLLENE"]
["142586C","CUADRADO HECTOR","19021 BILLARD CLUB CAVAILLONNAIS"]
["181819E","CUER KILLIAN","19127 O CIGALON BILLARD CLUB"]
["188119C","DA COSTA VIEIRA TONY","19002 SPORT AMAT.DE BILLARD MARSEILLAIS"]
["182387X","DA CUNHA ANTONIO","19130 BLACK BALL CAVAILLONNAIS"]
["182676L","DAIFHALLA PUICHAULT YANNIS","19025 BILLARD CLUB SISTERONNAIS"]
["177204N","DALMASSO EMMANUELLE","19025 BILLARD CLUB SISTERONNAIS"]
["167825T","DAMIENS ALEXANDRE","19127 O CIGALON BILLARD CLUB"]
["022002G","DAMON GERARD","19056 BILLARD CLUB DE NICE"]
["022003H","DAMON OLIVIER","19012 SALON BILLARD CLUB"]
["144640C","DANCARVILLE GUY","19009 CLUB BILLARD ISTREEN"]
["170095L","DAREAU GERALD","19055 ACADEMIE DE BILLARD DE MENTON"]
["014828I","DAUPHIN MICHEL","19014 BILLARD CLUB AVIGNONNAIS"]
["172573E","DAUPHIN THYFFEN","19002 SPORT AMAT.DE BILLARD MARSEILLAIS"]
["155526A","DAVID THIERRY","19025 BILLARD CLUB SISTERONNAIS"]
["171181R","DE CAMBOURG HELION","19014 BILLARD CLUB AVIGNONNAIS"]
["138202M","DE CAMPO TEDDY","19068 BILLARD CLUB ARLESIEN"]
["139487X","DE GRYSE GERARD","19023 BILLARD CLUB GARDEEN"]
["140113Z","DE HAAN PATRICK","19023 BILLARD CLUB GARDEEN"]
["176597D","DE JESUS GIL","19093 AMERICAN CLUB LOUIS XI"]
["163348C","DE LOOSE FELIX","19106 BILLARD CLUB VINONNAIS"]
["177338J","DE OLIVEIRA GONCALVES PAULO","19130 BLACK BALL CAVAILLONNAIS"]
["127655V","DE RIGAL DANIEL","19027 ACADEMIE DE BILLARD DE BOLLENE"]
["158419V","DEBASC GAD","19017 BILLARD CLUB PHOCEEN"]
["186975J","DEBEAUX CROCHANT CHLOE","19008 BRITISH BILLARD CLUB AVIGNON"]
["140093F","DEBOSZ RICHARD","19021 BILLARD CLUB CAVAILLONNAIS"]
["184548W","DEBRUYNE ANNE","19106 BILLARD CLUB VINONNAIS"]
["113220Q","DEBRUYNE TRISTAN","19106 BILLARD CLUB VINONNAIS"]
["178356Q","DEBUYSER ANNE","19058 ACADEMIE DE BILLARD DE BARBOSSI MANDELIEU"]
["181198E","DEDON DENISE","19007 BILLARD CLUB BERROIS"]
["177233V","DEDON RICHARD","19007 BILLARD CLUB BERROIS"]
["020635R","DEFRETIN JOEL","19023 BILLARD CLUB GARDEEN"]
["166003N","DELAIRE JEAN PIERRE","19021 BILLARD CLUB CAVAILLONNAIS"]
["160334B","DELAPORTE YVES","19006 BILLARD CLUB CARPENTRASSIEN"]
["112719J","DELBEY JULIEN","19012 SALON BILLARD CLUB"]
["175583B","DELTOUR LOUIS","19002 SPORT AMAT.DE BILLARD MARSEILLAIS"]
["143883Z","DELZORS JEAN PIERRE","19056 BILLARD CLUB DE NICE"]
["168662D","DEMARCQ JEAN FRANCOIS","19025 BILLARD CLUB SISTERONNAIS"]
["159102M","DEMAY ROMUALD","19127 O CIGALON BILLARD CLUB"]
["159076J","DEMERLIAC BRUNO","19007 BILLARD CLUB BERROIS"]
["186297X","DENIS GILLES","19009 CLUB BILLARD ISTREEN"]
["185116N","DEROSSI LORA","19002 SPORT AMAT.DE BILLARD MARSEILLAIS"]
["172766P","DERRIEN PIERRE YVES","19130 BLACK BALL CAVAILLONNAIS"]
["178042Z","DERUELLE NICOLAS","19008 BRITISH BILLARD CLUB AVIGNON"]
["142358I","DESMERO RAYMOND","19007 BILLARD CLUB BERROIS"]
["115051B","DESWAZIERE MICHEL","19027 ACADEMIE DE BILLARD DE BOLLENE"]
["169704L","DEVOURDY PASCALE","19068 BILLARD CLUB ARLESIEN"]
["176237M","DHENNIN MICHEL","19059 BILLARD CLUB ROQUEBRUNOIS"]
["156564D","DHERMY BERTRAND","19127 O CIGALON BILLARD CLUB"]
["135014W","DI BIN JEAN MARIE","19027 ACADEMIE DE BILLARD DE BOLLENE"]
["109528Q","DI CRESCENZO PIERRE","19017 BILLARD CLUB PHOCEEN"]
["186066W","DIDIER DOMINIQUE","19090 BILLARD AMATEUR ROGNAC"]
["101506C","DIJOUX YANNICK","19130 BLACK BALL CAVAILLONNAIS"]
["160331Y","DION JEAN LOUIS","19006 BILLARD CLUB CARPENTRASSIEN"]
["142363N","DONABEDIAN DANIEL","19019 BILLARD CLUB DE LA BAIE"]
["134701V","DORIDANT VINCENT","19127 O CIGALON BILLARD CLUB"]
["181974Y","DORNBUSH MARTINE","19023 BILLARD CLUB GARDEEN"]
["133512C","DOS SANTOS ADRIEN","19130 BLACK BALL CAVAILLONNAIS"]
["022039R","DOS SANTOS FRANCIS","19050 BILLARD CLUB SAUSSETOIS"]
["149802D","DOUIEB ALAIN","19058 ACADEMIE DE BILLARD DE BARBOSSI MANDELIEU"]
["174348J","DOUSSET RENE","19023 BILLARD CLUB GARDEEN"]
["139312E","DRAHON ADRIEN","19068 BILLARD CLUB ARLESIEN"]
["140803N","DREMEAUX JEAN PIERRE","19023 BILLARD CLUB GARDEEN"]
["184499S","DROGOU DANIELE","19068 BILLARD CLUB ARLESIEN"]
["013022W","DUBREUIL FRANCK","19061 ACAD.BILLARD ST RAPHAEL"]
["011522E","DUPUY MICHEL","19058 ACADEMIE DE BILLARD DE BARBOSSI MANDELIEU"]
["102285B","DUSSAULE PIERRE","19027 ACADEMIE DE BILLARD DE BOLLENE"]
["183248H","DUSSEAUX PATRICK","19021 BILLARD CLUB CAVAILLONNAIS"]
["175172E","DUVAL THIERRY","19061 ACAD.BILLARD ST RAPHAEL"]
["146662W","ECK MICHEL","19017 BILLARD CLUB PHOCEEN"]
["146142W","EGEA JEAN PIERRE","19130 BLACK BALL CAVAILLONNAIS"]
["155680S","EGRETEAUD CHRISTOPHE","19017 BILLARD CLUB PHOCEEN"]
["186461A","EL KARMOUNI DAVID","19002 SPORT AMAT.DE BILLARD MARSEILLAIS"]
["140809T","EL MEGHARY MAROUANE","19002 SPORT AMAT.DE BILLARD MARSEILLAIS"]
["163467G","ELEOUET DANIEL","19006 BILLARD CLUB CARPENTRASSIEN"]
["105440K","ENJOLRAS PIERRE","19007 BILLARD CLUB BERROIS"]
["125951H","ESCALERA JEREMIE","19068 BILLARD CLUB ARLESIEN"]
["167497M","ESCOFFIER ALAIN","19006 BILLARD CLUB CARPENTRASSIEN"]
["182064W","ESSAIDI TARIK","19008 BRITISH BILLARD CLUB AVIGNON"]
["147622J","ESTABLIER PIERRE","19023 BILLARD CLUB GARDEEN"]
["101343V","EYGRIER GERARD","19068 BILLARD CLUB ARLESIEN"]
["186621Z","FABER ERWIN","19021 BILLARD CLUB CAVAILLONNAIS"]
["186571V","FABRE ALEXANDRE","19002 SPORT AMAT.DE BILLARD MARSEILLAIS"]
["022061N","FAIVRE D ARCIER PATRICK","19056 BILLARD CLUB DE NICE"]
["187064F","FALEH MOHAMMED","19002 SPORT AMAT.DE BILLARD MARSEILLAIS"]
["022065R","FAURE EMILE","19016 BILLARD CLUB ORANGEOIS"]
["022066S","FAVARIO CHRISTIAN","19027 ACADEMIE DE BILLARD DE BOLLENE"]
["184760B","FAVEAU MARTINE","19014 BILLARD CLUB AVIGNONNAIS"]
["179557W","FEBVRET MELANIE","19130 BLACK BALL CAVAILLONNAIS"]
["022067T","FERAUD GERARD","19027 ACADEMIE DE BILLARD DE BOLLENE"]
["182675K","FERAUD LOUIS","19025 BILLARD CLUB SISTERONNAIS"]
["129036Y","FERHAT ACHOUR","19023 BILLARD CLUB GARDEEN"]
["153669G","FERNANDES GOMES MARIO","19093 AMERICAN CLUB LOUIS XI"]
["013111H","FERNANDEZ MARC","19007 BILLARD CLUB BERROIS"]
["120704M","FERRE DIDIER","19058 ACADEMIE DE BILLARD DE BARBOSSI MANDELIEU"]
["122658Q","FERRO PHILIPPE","19009 CLUB BILLARD ISTREEN"]
["172308R","FERRON FREDERIC","19012 SALON BILLARD CLUB"]
["187206K","FERSATOGLU MURAT","19002 SPORT AMAT.DE BILLARD MARSEILLAIS"]
["165759Y","FESQUET GUYLENE","19068 BILLARD CLUB ARLESIEN"]
["177610E","FITOUSSI SHAI","19112 NISSA BILLARD CLUB"]
["173138T","FLEURIOT PATRICK","19014 BILLARD CLUB AVIGNONNAIS"]
["101139Z","FONTAINE DANY","19023 BILLARD CLUB GARDEEN"]
["127035Z","FOREL PHILIPPE","19130 BLACK BALL CAVAILLONNAIS"]
["187591D","FOUILLY FRANCOISE","19068 BILLARD CLUB ARLESIEN"]
["184732W","FOURNET SEBASTIEN","19002 SPORT AMAT.DE BILLARD MARSEILLAIS"]
["176168M","FRANCHI PATRICK","19056 BILLARD CLUB DE NICE"]
["022084K","FRANCO ALBERT","19019 BILLARD CLUB DE LA BAIE"]
["187161L","FRANCO FREDERIC","19008 BRITISH BILLARD CLUB AVIGNON"]
["118688Y","FRANCO HENRY","19055 ACADEMIE DE BILLARD DE MENTON"]
["123168G","FRIGANO SEBASTIEN","19130 BLACK BALL CAVAILLONNAIS"]
["182539M","FROMENT REMI","19068 BILLARD CLUB ARLESIEN"]
["167290M","FROMEYER CORINNE","19058 ACADEMIE DE BILLARD DE BARBOSSI MANDELIEU"]
["159060R","FURNON ROGER","19014 BILLARD CLUB AVIGNONNAIS"]
["103216W","GABETTO STEPHANE","19023 BILLARD CLUB GARDEEN"]
["120076I","GABRIEL MARTIAL","19127 O CIGALON BILLARD CLUB"]
["125439P","GAEREMYNCK JACQUES","19058 ACADEMIE DE BILLARD DE BARBOSSI MANDELIEU"]
["176024F","GAILLET PATRICK","19098 BILLARD CLUB LA FARE"]
["142316S","GALARDINI RICHARD","19050 BILLARD CLUB SAUSSETOIS"]
["178728V","GALLEZ DANIEL","19019 BILLARD CLUB DE LA BAIE"]
["022091R","GALLUCCI STEPHANE","19056 BILLARD CLUB DE NICE"]
["147705Z","GAMBINO OLIVIER","19068 BILLARD CLUB ARLESIEN"]
["147288W","GAMEN ANDRE","19023 BILLARD CLUB GARDEEN"]
["022092S","GANTOIS GILLES","19016 BILLARD CLUB ORANGEOIS"]
["138115D","GARCIA RICHARD","19014 BILLARD CLUB AVIGNONNAIS"]
["116525T","GARCIA SEBASTIEN","19112 NISSA BILLARD CLUB"]
["147262S","GATTINO MARCO","19055 ACADEMIE DE BILLARD DE MENTON"]
["022097X","GATTO ANTOINE","19050 BILLARD CLUB SAUSSETOIS"]
["186342W","GAUTIER PATRICK","19027 ACADEMIE DE BILLARD DE BOLLENE"]
["116278G","GAVALDA PIERRE","19006 BILLARD CLUB CARPENTRASSIEN"]
["143227T","GAYRAUD FRANCOISE","19056 BILLARD CLUB DE NICE"]
["186701L","GEDOR FRANCIS","19061 ACAD.BILLARD ST RAPHAEL"]
["183704D","GEFFROY MEGGAN","19008 BRITISH BILLARD CLUB AVIGNON"]
["163279C","GELAS BERNARD","19098 BILLARD CLUB LA FARE"]
["150065P","GENDRAUD PHILIPPE","19138 BILLARD CLUB FREJUSSIEN"]
["139657L","GENESTON JEAN LOUIS","19025 BILLARD CLUB SISTERONNAIS"]
["183566D","GEOFFROY GUILLAUME","19017 BILLARD CLUB PHOCEEN"]
["022103D","GERARD PASCAL","19056 BILLARD CLUB DE NICE"]
["179077Z","GERARD SANDRINE","19090 BILLARD AMATEUR ROGNAC"]
["167330F","GERARD THOMAS","19056 BILLARD CLUB DE NICE"]
["022104E","GERVAIS GUILLAUME","19021 BILLARD CLUB CAVAILLONNAIS"]
["101282M","GHU GERARD","19016 BILLARD CLUB ORANGEOIS"]
["022108I","GIANNATTASIO LUCIEN","19009 CLUB BILLARD ISTREEN"]
["129044G","GIAVELLI GAETAN","19068 BILLARD CLUB ARLESIEN"]
["118661X","GIBARROUX CHRISTOPHE","19001 S. S. A. B. D AIX EN PROVENCE"]
["149390F","GIFFARD PHILIPPE","19023 BILLARD CLUB GARDEEN"]
["180514L","GILLET PHILIPPE","19058 ACADEMIE DE BILLARD DE BARBOSSI MANDELIEU"]
["149471T","GILLODTS CHRISTIAN","19017 BILLARD CLUB PHOCEEN"]
["022113N","GIMENEZ SERGE","19056 BILLARD CLUB DE NICE"]
["172734E","GIRARD DENIS","19023 BILLARD CLUB GARDEEN"]
["129718E","GIRARD JACQUES","19058 ACADEMIE DE BILLARD DE BARBOSSI MANDELIEU"]
["181920P","GOAILLARD JEAN MARC","19017 BILLARD CLUB PHOCEEN"]
["157852D","GODARD PASCAL","19006 BILLARD CLUB CARPENTRASSIEN"]
["101478A","GODOY CYRILLE","19127 O CIGALON BILLARD CLUB"]
["120100G","GOMES VITOR","19001 S. S. A. B. D AIX EN PROVENCE"]
["174487K","GORGET MIKAEL","19002 SPORT AMAT.DE BILLARD MARSEILLAIS"]
["186570T","GOTTRAU MARION","19002 SPORT AMAT.DE BILLARD MARSEILLAIS"]
["022127B","GOUBAUX ALAIN","19056 BILLARD CLUB DE NICE"]
["182752T","GOUILLON JULIETTE","19056 BILLARD CLUB DE NICE"]
["174010R","GOUILLON MATTHIEU","19056 BILLARD CLUB DE NICE"]
["022129D","GOUIRAN GEORGES","19050 BILLARD CLUB SAUSSETOIS"]
["104054C","GOURSEAUD YVES","19016 BILLARD CLUB ORANGEOIS"]
["175026W","GOUZIEN MILENE","19131 BILLARD CLUB DE L ESTAGNOL"]
["101259P","GOUZIEN RENAUD","19131 BILLARD CLUB DE L ESTAGNOL"]
["166216V","GOUZIEN YANN","19131 BILLARD CLUB DE L ESTAGNOL"]
["144636Y","GOUZOUGUEN CHRISTIAN","19006 BILLARD CLUB CARPENTRASSIEN"]
["135555R","GOYAUD YVES","19002 SPORT AMAT.DE BILLARD MARSEILLAIS"]
["180247W","GRANDBOUCHE FRANCOIS","19002 SPORT AMAT.DE BILLARD MARSEILLAIS"]
["156807S","GRANIER JEAN MARC","19130 BLACK BALL CAVAILLONNAIS"]
["172785K","GRANIER MANUEL","19130 BLACK BALL CAVAILLONNAIS"]
["172740L","GRANIER MIREILLE","19130 BLACK BALL CAVAILLONNAIS"]
["157851C","GRAVELLE JULIEN","19006 BILLARD CLUB CARPENTRASSIEN"]
["170379V","GREBLO EDI","19093 AMERICAN CLUB LOUIS XI"]
["183595K","GREGEOIS MAEL","19002 SPORT AMAT.DE BILLARD MARSEILLAIS"]
["107059R","GROS MARIE PAULE","19068 BILLARD CLUB ARLESIEN"]
["101403D","GROS ROLAND","19068 BILLARD CLUB ARLESIEN"]
["172011T","GROUSSON ROBERT","19009 CLUB BILLARD ISTREEN"]
["135013V","GUERI ROBERT","19027 ACADEMIE DE BILLARD DE BOLLENE"]
["103615F","GUERIN RAYMOND","19017 BILLARD CLUB PHOCEEN"]
["144796C","GUERINEAU BRUNO","19021 BILLARD CLUB CAVAILLONNAIS"]
["022135J","GUERINEAU THIERRY","19021 BILLARD CLUB CAVAILLONNAIS"]
["112620O","GUERN ROCH","19023 BILLARD CLUB GARDEEN"]
["104475H","GUEUG PIERRE","19056 BILLARD CLUB DE NICE"]
["165760Z","GUEUSE PATRICK","19068 BILLARD CLUB ARLESIEN"]
["154530S","GUIZELIN PASCAL","19106 BILLARD CLUB VINONNAIS"]
["161784C","GUYENOT JEAN LOUIS","19056 BILLARD CLUB DE NICE"]
["184013P","HADDAD JEAN PIERRE","19014 BILLARD CLUB AVIGNONNAIS"]
["147316B","HADDOUCHE JONATHAN","19002 SPORT AMAT.DE BILLARD MARSEILLAIS"]
["011966G","HAHN DANIEL","19017 BILLARD CLUB PHOCEEN"]
["166068J","HAMALIAN CYRIL","19002 SPORT AMAT.DE BILLARD MARSEILLAIS"]
["187034Y","HARB MANUEL","19002 SPORT AMAT.DE BILLARD MARSEILLAIS"]
["166328R","HARTENSTEIN BRUNO","19006 BILLARD CLUB CARPENTRASSIEN"]
["183291E","HATEM MARC","19131 BILLARD CLUB DE L ESTAGNOL"]
["137523J","HAZE PATRICK","19021 BILLARD CLUB CAVAILLONNAIS"]
["101323B","HEBRAL LUDOVIC","19112 NISSA BILLARD CLUB"]
["186298Y","HEINRICH CHRISTIAN","19009 CLUB BILLARD ISTREEN"]
["184516L","HEITZ CHRISTIAN","19112 NISSA BILLARD CLUB"]
["176054N","HERBAUT SASHA","19023 BILLARD CLUB GARDEEN"]
["119933V","HERREMAN SERGE","19023 BILLARD CLUB GARDEEN"]
["137004K","HEURTAULT JACKY","19012 SALON BILLARD CLUB"]
["169219J","HEYDON CHRISTOPHER","19127 O CIGALON BILLARD CLUB"]
["169259C","HEYDON SABINE","19127 O CIGALON BILLARD CLUB"]
["177454K","HOLUIGUE ROGER","19023 BILLARD CLUB GARDEEN"]
["178843V","HUEBER MARIANNE","19068 BILLARD CLUB ARLESIEN"]
["172086A","HUGUET PATRICK","19017 BILLARD CLUB PHOCEEN"]
["172214P","IDJERI GILBERT","19050 BILLARD CLUB SAUSSETOIS"]
["187217X","IMPERIALE BRUNO","19112 NISSA BILLARD CLUB"]
["181447A","INGA FABRIZIO","19112 NISSA BILLARD CLUB"]
["188261G","IOZZOLINO PHILIPPO","19017 BILLARD CLUB PHOCEEN"]
["184059P","ISRAEL ELIE","19017 BILLARD CLUB PHOCEEN"]
["184667A","IVACHEFF HELENE","19106 BILLARD CLUB VINONNAIS"]
["181239Z","IVACHEFF MICHEL","19106 BILLARD CLUB VINONNAIS"]
["182210E","JABBOUR HAMZA","19002 SPORT AMAT.DE BILLARD MARSEILLAIS"]
["178874D","JALBAUD OLIVIER","19008 BRITISH BILLARD CLUB AVIGNON"]
["179363K","JALLIFFIER ARDENT MARIE","19056 BILLARD CLUB DE NICE"]
["167227T","JALOUAJ AMINE","19127 O CIGALON BILLARD CLUB"]
["179136N","JAMET PIERRE","19055 ACADEMIE DE BILLARD DE MENTON"]
["163437Z","JAMOIS ENZO","19112 NISSA BILLARD CLUB"]
["183489V","JANNOT FREDERIC","19019 BILLARD CLUB DE LA BAIE"]
["120814S","JONNARD FREDERIC","19023 BILLARD CLUB GARDEEN"]
["183705E","JOUVE PHILIPPE","19008 BRITISH BILLARD CLUB AVIGNON"]
["190344W","JUDALET FRANCOIS","19019 BILLARD CLUB DE LA BAIE"]
["109412E","JUIGNET CHRISTIAN","19138 BILLARD CLUB FREJUSSIEN"]
["162905W","JUMEL RENE","19027 ACADEMIE DE BILLARD DE BOLLENE"]
["159345B","KAM WILLIAM","19068 BILLARD CLUB ARLESIEN"]
["101100M","KERNINON PATRICE","19130 BLACK BALL CAVAILLONNAIS"]
["188099F","KIOUS MOURAD","19002 SPORT AMAT.DE BILLARD MARSEILLAIS"]
["160590E","KITTYAVONG DIMITRI","19002 SPORT AMAT.DE BILLARD MARSEILLAIS"]
["022175X","KUNTZ ADRIEN","19055 ACADEMIE DE BILLARD DE MENTON"]
["186947D","LABATUT FRANCOIS","19059 BILLARD CLUB ROQUEBRUNOIS"]
["187441Q","LABBE MICHEL","19014 BILLARD CLUB AVIGNONNAIS"]
["109977X","LACOSSE JEAN PAUL","19019 BILLARD CLUB DE LA BAIE"]
["116529X","LACOUR DAVID","19127 O CIGALON BILLARD CLUB"]
["186987X","LACUES PATRICE","19058 ACADEMIE DE BILLARD DE BARBOSSI MANDELIEU"]
["177232T","LAFDJIAN GILBERT","19007 BILLARD CLUB BERROIS"]
["183208P","LAFOND GAULHIER JEAN PHILIPPE","19131 BILLARD CLUB DE L ESTAGNOL"]
["101267X","LAGIER ALBAN","19131 BILLARD CLUB DE L ESTAGNOL"]
["181038F","LAM MINH TRUNG DENIS","19056 BILLARD CLUB DE NICE"]
["167062P","LANAIA MICKAEL","19130 BLACK BALL CAVAILLONNAIS"]
["175999D","LANARI PIERRE","19056 BILLARD CLUB DE NICE"]
["016084Q","LANDE GERARD","19014 BILLARD CLUB AVIGNONNAIS"]
["181199F","LANDERECTHE PASCAL","19007 BILLARD CLUB BERROIS"]
["181200G","LANDERECTHE RUDY","19007 BILLARD CLUB BERROIS"]
["179135M","LANDOIS DOMINIQUE","19055 ACADEMIE DE BILLARD DE MENTON"]
["022186I","LANG CHRISTIAN","19009 CLUB BILLARD ISTREEN"]
["168288X","LANNURIEN THIERRY","19023 BILLARD CLUB GARDEEN"]
["186266N","LANNY ALAIN","19050 BILLARD CLUB SAUSSETOIS"]
["187426Z","LAUDY JEAN","19058 ACADEMIE DE BILLARD DE BARBOSSI MANDELIEU"]
["178352L","LAUNAY MICHEL","19058 ACADEMIE DE BILLARD DE BARBOSSI MANDELIEU"]
["122601L","LAVAUD JOHN","19130 BLACK BALL CAVAILLONNAIS"]
["163278B","LE FAUCHEUR LAURENT","19098 BILLARD CLUB LA FARE"]
["148064P","LE GOC MICKAEL","19136 BLACK BALL CONCEPT"]
["125949F","LE GUENNEC CHRISTIAN","19061 ACAD.BILLARD ST RAPHAEL"]
["182211F","LE JEUNE NICOLAS","19002 SPORT AMAT.DE BILLARD MARSEILLAIS"]
["107465H","LE QUEAU EDDY","19068 BILLARD CLUB ARLESIEN"]
["186459Y","LE TROCQUER HUGO","19002 SPORT AMAT.DE BILLARD MARSEILLAIS"]
["177122Z","LEBARBENCHON JEAN","19055 ACADEMIE DE BILLARD DE MENTON"]
["125969Z","LECLERC CYPRIEN","19068 BILLARD CLUB ARLESIEN"]
["160245E","LECLERC SYLVAIN","19130 BLACK BALL CAVAILLONNAIS"]
["141504M","LECOQ ARNAUD","19012 SALON BILLARD CLUB"]
["128719T","LECUILLIER ARNAUD","19127 O CIGALON BILLARD CLUB"]
["105373V","LEDUCQ MORGAN","19014 BILLARD CLUB AVIGNONNAIS"]
["117411V","LEFAUX JEAN JACQUES","19025 BILLARD CLUB SISTERONNAIS"]
["187022K","LEFEBVRE ENZO","19130 BLACK BALL CAVAILLONNAIS"]
["184966A","LEGER CHRISTIAN","19008 BRITISH BILLARD CLUB AVIGNON"]
["182751S","LEGER RAYAN","19056 BILLARD CLUB DE NICE"]
["103572O","LEMAIRE PHILIPPE","19056 BILLARD CLUB DE NICE"]
["110379J","LEMARTINET ROBERT","19019 BILLARD CLUB DE LA BAIE"]
["022205B","LEMESLE FABRICE","19017 BILLARD CLUB PHOCEEN"]
["104233Z","LEMIERE JEAN NOEL","19023 BILLARD CLUB GARDEEN"]
["186622A","LEON ALFRED","19021 BILLARD CLUB CAVAILLONNAIS"]
["168015A","LEONESI ALAIN","19014 BILLARD CLUB AVIGNONNAIS"]
["179358E","LESPRIT CLAUDE","19019 BILLARD CLUB DE LA BAIE"]
["176350K","LETELLIER ALAIN","19090 BILLARD AMATEUR ROGNAC"]
["184858H","LEVISTRE ALAIN","19014 BILLARD CLUB AVIGNONNAIS"]
["147317C","LEYNAUD JEAN LUC","19002 SPORT AMAT.DE BILLARD MARSEILLAIS"]
["022209F","LIEGEOIS DOMINIQUE","19027 ACADEMIE DE BILLARD DE BOLLENE"]
["118678O","LIENS MICHEL","19021 BILLARD CLUB CAVAILLONNAIS"]
["161477T","LIMA STEPHANE","19130 BLACK BALL CAVAILLONNAIS"]
["178650K","LIONNE GEORGES","19027 ACADEMIE DE BILLARD DE BOLLENE"]
["146375V","LISI ROGER","19007 BILLARD CLUB BERROIS"]
["168722T","LISSAJOUX JEAN CLAUDE","19009 CLUB BILLARD ISTREEN"]
["170266X","LLOBELL ALAIN","19017 BILLARD CLUB PHOCEEN"]
["170267Y","LLOBELL CLAIRE","19017 BILLARD CLUB PHOCEEN"]
["101339R","LOMBARDO STEPHANE","19127 O CIGALON BILLARD CLUB"]
["166755F","LOPEZ TONY","19112 NISSA BILLARD CLUB"]
["182061S","LORENTE LOIC","19131 BILLARD CLUB DE L ESTAGNOL"]
["022217N","LORKOVIC JOSEPH","19009 CLUB BILLARD ISTREEN"]
["168030R","LOSTAO DOMINIQUE","19058 ACADEMIE DE BILLARD DE BARBOSSI MANDELIEU"]
["162076V","LUCENET PAUL","19009 CLUB BILLARD ISTREEN"]
["186880F","LUNEAU JEAN CLAUDE","19023 BILLARD CLUB GARDEEN"]
["022221R","LUVISON JEAN","19012 SALON BILLARD CLUB"]
["022223T","MACQUET PATRICK","19056 BILLARD CLUB DE NICE"]
["188649D","MAGNANT ELISABETH","19056 BILLARD CLUB DE NICE"]
["165843P","MAGNIER PIERRE","19023 BILLARD CLUB GARDEEN"]
["100910E","MALLEVAL GERARD","19023 BILLARD CLUB GARDEEN"]
["184967B","MANCIP RICHARD","19008 BRITISH BILLARD CLUB AVIGNON"]
["186458X","MANZO PIERRE JEAN","19002 SPORT AMAT.DE BILLARD MARSEILLAIS"]
["020447L","MARCEAUX JOSE","19059 BILLARD CLUB ROQUEBRUNOIS"]
["184650G","MARCEIX ALAIN","19014 BILLARD CLUB AVIGNONNAIS"]
["164047M","MARCHAND PHILIPPE","19001 S. S. A. B. D AIX EN PROVENCE"]
["177467Z","MARCHANDISE MORAND JACQUELINE","19025 BILLARD CLUB SISTERONNAIS"]
["108280Q","MARCIANO GEORGES","19058 ACADEMIE DE BILLARD DE BARBOSSI MANDELIEU"]
["175846M","MARIE MICHEL","19021 BILLARD CLUB CAVAILLONNAIS"]
["101260Q","MARIOTTI JEAN MICHEL","19131 BILLARD CLUB DE L ESTAGNOL"]
["159950J","MARME HANS","19127 O CIGALON BILLARD CLUB"]
["187722W","MARQUET CHRISTINE","19014 BILLARD CLUB AVIGNONNAIS"]
["188499Q","MARSIL ROBIN","19058 ACADEMIE DE BILLARD DE BARBOSSI MANDELIEU"]
["175391S","MARTIN CLAUDE","19021 BILLARD CLUB CAVAILLONNAIS"]
["184012N","MARTIN NICOLE","19014 BILLARD CLUB AVIGNONNAIS"]
["178842T","MARTINEZ ALAIN","19068 BILLARD CLUB ARLESIEN"]
["180741H","MARTINEZ BENOIT","19008 BRITISH BILLARD CLUB AVIGNON"]
["143727Z","MARTINEZ BERNARD","19061 ACAD.BILLARD ST RAPHAEL"]
["103612C","MARTRE OLIVIER","19127 O CIGALON BILLARD CLUB"]
["103581X","MASSERAN PHILIPPE","19058 ACADEMIE DE BILLARD DE BARBOSSI MANDELIEU"]
["172680W","MASSIAS GUY","19001 S. S. A. B. D AIX EN PROVENCE"]
["159674J","MASSOT SEBASTIEN","19025 BILLARD CLUB SISTERONNAIS"]
["185218Z","MATHE CLAUDE","19056 BILLARD CLUB DE NICE"]
["129498S","MATHIEU CLAUDE","19098 BILLARD CLUB LA FARE"]
["123165D","MATHIEU JOHNNY","19127 O CIGALON BILLARD CLUB"]
["183687K","MATHIEU MICHEL","19006 BILLARD CLUB CARPENTRASSIEN"]
["160344M","MATILLON CLAUDE","19001 S. S. A. B. D AIX EN PROVENCE"]
["017615N","MAUDUIT DIDIER","19009 CLUB BILLARD ISTREEN"]
["149391G","MAURON BERNARD","19023 BILLARD CLUB GARDEEN"]
["163825W","MAURY HENRI","19058 ACADEMIE DE BILLARD DE BARBOSSI MANDELIEU"]
["188265L","MAURY MICHELLE","19008 BRITISH BILLARD CLUB AVIGNON"]
["112015H","MAYNARD ALEXANDRE","19056 BILLARD CLUB DE NICE"]
["187207L","MECHEROUR ADAM","19002 SPORT AMAT.DE BILLARD MARSEILLAIS"]
["128466A","MEGUIN ERIC","19021 BILLARD CLUB CAVAILLONNAIS"]
["177827Q","MELIN JEAN CLAUDE","19008 BRITISH BILLARD CLUB AVIGNON"]
["177828R","MELIN YONI","19008 BRITISH BILLARD CLUB AVIGNON"]
["144802I","MELLET PIERRE","19027 ACADEMIE DE BILLARD DE BOLLENE"]
["134817H","MENETRIER GUILLAUME","19127 O CIGALON BILLARD CLUB"]
["188264K","MENJRA SAAD","19008 BRITISH BILLARD CLUB AVIGNON"]
["102346K","MERINO SYLVAIN","19130 BLACK BALL CAVAILLONNAIS"]
["154630B","MERLIOT CYRIL","19008 BRITISH BILLARD CLUB AVIGNON"]
["152604Z","METAIS ALBAN","19006 BILLARD CLUB CARPENTRASSIEN"]
["022260E","MEYER LUC","19023 BILLARD CLUB GARDEEN"]
["183513W","MICHEL JACQUES","19006 BILLARD CLUB CARPENTRASSIEN"]
["180677N","MILLOT ANITA","19023 BILLARD CLUB GARDEEN"]
["180676M","MILLOT BENOIT","19023 BILLARD CLUB GARDEEN"]
["172218T","MILLOT ROBERT","19025 BILLARD CLUB SISTERONNAIS"]
["144792Y","MISRAKI ROMAIN","19002 SPORT AMAT.DE BILLARD MARSEILLAIS"]
["138210U","MISSUD ALAIN","19014 BILLARD CLUB AVIGNONNAIS"]
["022266K","MOGLIA EMILE","19014 BILLARD CLUB AVIGNONNAIS"]
["184069A","MOINON FRANCOIS","19002 SPORT AMAT.DE BILLARD MARSEILLAIS"]
["022268M","MOLAND PHILIPPE","19059 BILLARD CLUB ROQUEBRUNOIS"]
["113413B","MOLINA HUGO","19127 O CIGALON BILLARD CLUB"]
["022270O","MOLINAS ROBERT","19021 BILLARD CLUB CAVAILLONNAIS"]
["022271P","MONNET JEAN CLAUDE","19021 BILLARD CLUB CAVAILLONNAIS"]
["187072P","MONSTIN PIERRE","19068 BILLARD CLUB ARLESIEN"]
["116557Z","MONTALTI PIERRE","19002 SPORT AMAT.DE BILLARD MARSEILLAIS"]
["147134D","MONTERO JEAN MANUEL","19068 BILLARD CLUB ARLESIEN"]
["136279N","MONTESINOS GILLES","19012 SALON BILLARD CLUB"]
["147624L","MOREELS BERNARD","19023 BILLARD CLUB GARDEEN"]
["176019A","MORERE JEAN PIERRE","19059 BILLARD CLUB ROQUEBRUNOIS"]
["184898B","MORLET GABIN","19058 ACADEMIE DE BILLARD DE BARBOSSI MANDELIEU"]
["182204Y","MOUMENE AMINE","19002 SPORT AMAT.DE BILLARD MARSEILLAIS"]
["151456B","MOUSSIER PATRICK","19056 BILLARD CLUB DE NICE"]
["022283B","MOUTIN FERNAND ALAIN","19021 BILLARD CLUB CAVAILLONNAIS"]
["153604L","MOUTON VINCENT","19112 NISSA BILLARD CLUB"]
["188098E","MRANI FAHD","19002 SPORT AMAT.DE BILLARD MARSEILLAIS"]
["109063T","MUNOS JEAN","19050 BILLARD CLUB SAUSSETOIS"]
["109708O","MUNOS VINCENT","19007 BILLARD CLUB BERROIS"]
["022284C","MUNOZ CHRISTIAN","19098 BILLARD CLUB LA FARE"]
["168135F","MURAILLE ALAIN","19017 BILLARD CLUB PHOCEEN"]
["117647X","MUSATO LAETITIA","19127 O CIGALON BILLARD CLUB"]
["184520Q","MUTI FABIEN","19014 BILLARD CLUB AVIGNONNAIS"]
["132351L","N GUYEN NGA","19056 BILLARD CLUB DE NICE"]
["141788K","N GUYEN VAN DUC MAX","19007 BILLARD CLUB BERROIS"]
["132333T","N GUYEN VAN MAO","19056 BILLARD CLUB DE NICE"]
["166329S","NABHANE EMILE","19006 BILLARD CLUB CARPENTRASSIEN"]
["188236E","NADOTTI PHILIPPE","19021 BILLARD CLUB CAVAILLONNAIS"]
["107150E","NAPOLI SALVATORE","19006 BILLARD CLUB CARPENTRASSIEN"]
["013816K","NARBONI PATRICK","19056 BILLARD CLUB DE NICE"]
["107263N","NASICA PATRICK","19014 BILLARD CLUB AVIGNONNAIS"]
["101269Z","NATALI MICHEL","19131 BILLARD CLUB DE L ESTAGNOL"]
["154573P","NATELLA IDA","19056 BILLARD CLUB DE NICE"]
["154572N","NATELLA ROGER","19056 BILLARD CLUB DE NICE"]
["186341V","NAUDIN DIDIER","19027 ACADEMIE DE BILLARD DE BOLLENE"]
["185108E","NEGOZIO JACKY","19059 BILLARD CLUB ROQUEBRUNOIS"]
["189091J","NERI JACQUES","19027 ACADEMIE DE BILLARD DE BOLLENE"]
["188047Z","NEUMANN ERIC","19002 SPORT AMAT.DE BILLARD MARSEILLAIS"]
["164318G","NGUYEN AHN TUAN","19006 BILLARD CLUB CARPENTRASSIEN"]
["183754H","NGUYEN PAUL","19055 ACADEMIE DE BILLARD DE MENTON"]
["177708L","NICLOT HOWARD","19112 NISSA BILLARD CLUB"]
["182538L","NOE HUGO","19068 BILLARD CLUB ARLESIEN"]
["184016S","NOEL JEROME","19058 ACADEMIE DE BILLARD DE BARBOSSI MANDELIEU"]
["125919B","NOLASQUE LYDIE","19127 O CIGALON BILLARD CLUB"]
["182190H","NOSSIN MARC","19058 ACADEMIE DE BILLARD DE BARBOSSI MANDELIEU"]
["020258E","OLLIVIER DANIEL","19009 CLUB BILLARD ISTREEN"]
["187423W","OTELAS ALEXANDRE","19112 NISSA BILLARD CLUB"]
["128468C","OUDOUX GERARD","19023 BILLARD CLUB GARDEEN"]
["124310E","OUZEAU VINCENT","19008 BRITISH BILLARD CLUB AVIGNON"]
["150400D","PACZESNY FABRICE","19098 BILLARD CLUB LA FARE"]
["164512S","PAN JEROME","19127 O CIGALON BILLARD CLUB"]
["186539K","PANAGET KEVIN","19127 O CIGALON BILLARD CLUB"]
["185639G","PANTALONE CLAUDE","19017 BILLARD CLUB PHOCEEN"]
["177193B","PAU CHRISTINE","19025 BILLARD CLUB SISTERONNAIS"]
["183593H","PAUL ANTOINE","19002 SPORT AMAT.DE BILLARD MARSEILLAIS"]
["135615Z","PAULHE PIERRE","19127 O CIGALON BILLARD CLUB"]
["187378X","PEGLION FLAVIE","19112 NISSA BILLARD CLUB"]
["141673Z","PELLAT FRANCIS","19025 BILLARD CLUB SISTERONNAIS"]
["013896M","PEREIRA CHARLES","19023 BILLARD CLUB GARDEEN"]
["182269T","PEREY ELEONORE","19008 BRITISH BILLARD CLUB AVIGNON"]
["130773T","PEREZ CHRISTIAN","19009 CLUB BILLARD ISTREEN"]
["159241N","PEREZ JEAN PIERRE","19023 BILLARD CLUB GARDEEN"]
["103604U","PEREZ PIERRE","19068 BILLARD CLUB ARLESIEN"]
["022321N","PERIS MICHEL","19056 BILLARD CLUB DE NICE"]
["021540M","PERRIER GILLES","19021 BILLARD CLUB CAVAILLONNAIS"]
["101398Y","PERRIN GILLES","19068 BILLARD CLUB ARLESIEN"]
["181624S","PERRIN LIONEL","19023 BILLARD CLUB GARDEEN"]
["187709G","PERROUD JEAN FRANCOIS","19023 BILLARD CLUB GARDEEN"]
["170701V","PERSONNE MARTINE","19008 BRITISH BILLARD CLUB AVIGNON"]
["179786V","PERTUZON NOLAN","19009 CLUB BILLARD ISTREEN"]
["013913D","PESTRE SERGE","19061 ACAD.BILLARD ST RAPHAEL"]
["179183P","PETIT PHILIPPE","19014 BILLARD CLUB AVIGNONNAIS"]
["182257F","PEUGNET ALEXIS","19008 BRITISH BILLARD CLUB AVIGNON"]
["187155E","PEYROUSE RICHARD","19068 BILLARD CLUB ARLESIEN"]
["182685W","PIALLA VALERIE","19009 CLUB BILLARD ISTREEN"]
["187949S","PIAT ERIC","19017 BILLARD CLUB PHOCEEN"]
["135135N","PICCHI GERARD","19009 CLUB BILLARD ISTREEN"]
["160326S","PICCINELLI OLIVIER","19130 BLACK BALL CAVAILLONNAIS"]
["022330W","PIELIN PASCAL","19012 SALON BILLARD CLUB"]
["112316W","PIGNATEL FLORENT","19021 BILLARD CLUB CAVAILLONNAIS"]
["165118B","PILAVDJIAN JACQUES","19017 BILLARD CLUB PHOCEEN"]
["105404A","PINARD PATRICE","19012 SALON BILLARD CLUB"]
["022332Y","PINNA ALAIN","19017 BILLARD CLUB PHOCEEN"]
["148229T","PINNA VINCENT","19017 BILLARD CLUB PHOCEEN"]
["177205P","PIRO COUDERC MARIE LAURE","19025 BILLARD CLUB SISTERONNAIS"]
["182845V","PLANTE LUDOVIC","19050 BILLARD CLUB SAUSSETOIS"]
["177189X","PLE CYRIL","19025 BILLARD CLUB SISTERONNAIS"]
["108010G","POIRIER DOMINIQUE","19061 ACAD.BILLARD ST RAPHAEL"]
["168016B","POIRMEUR CLAUDE","19014 BILLARD CLUB AVIGNONNAIS"]
["178351K","POLI ANTOINE","19058 ACADEMIE DE BILLARD DE BARBOSSI MANDELIEU"]
["178696K","POLYNICE ROLLAND","19056 BILLARD CLUB DE NICE"]
["183247G","PONT CEDRIC","19002 SPORT AMAT.DE BILLARD MARSEILLAIS"]
["170697Q","PORA JEAN PAUL","19009 CLUB BILLARD ISTREEN"]
["181316H","PORTET PATRICK","19059 BILLARD CLUB ROQUEBRUNOIS"]
["022346M","POUGIN JEAN FRANCOIS","19059 BILLARD CLUB ROQUEBRUNOIS"]
["022347N","POUJOL JEAN PAUL","19014 BILLARD CLUB AVIGNONNAIS"]
["144719D","POULAIN FREDERIC","19016 BILLARD CLUB ORANGEOIS"]
["116550S","POURROT DAVID","19008 BRITISH BILLARD CLUB AVIGNON"]
["022349P","POZNANSKI JEAN MICHEL","19012 SALON BILLARD CLUB"]
["178400N","PREVOT GABRIEL","19056 BILLARD CLUB DE NICE"]
["178399M","PREVOT OLIVIER","19056 BILLARD CLUB DE NICE"]
["143885B","PROFIT GILBERT","19056 BILLARD CLUB DE NICE"]
["180317X","PTSIAMITAS PANAGIOTIS","19090 BILLARD AMATEUR ROGNAC"]
["172219V","PUICHAULT REMY","19025 BILLARD CLUB SISTERONNAIS"]
["143151V","QUANTINET ROBERT","19058 ACADEMIE DE BILLARD DE BARBOSSI MANDELIEU"]
["174009Q","QUARTO LARA","19056 BILLARD CLUB DE NICE"]
["136544S","QUEZEL ANDRE","19014 BILLARD CLUB AVIGNONNAIS"]
["174571B","QUILLET LORIS","19130 BLACK BALL CAVAILLONNAIS"]
["186763D","QUILLET YANN","19130 BLACK BALL CAVAILLONNAIS"]
["182722L","RAMAROSON HERIZO","19002 SPORT AMAT.DE BILLARD MARSEILLAIS"]
["176234J","RAMIREZ ALAIN","19001 S. S. A. B. D AIX EN PROVENCE"]
["022357X","RAMOND JEAN MARC","19058 ACADEMIE DE BILLARD DE BARBOSSI MANDELIEU"]
["136205R","RANC ALAIN","19027 ACADEMIE DE BILLARD DE BOLLENE"]
["101290U","RANIERI JEAN ANDRE","19136 BLACK BALL CONCEPT"]
["139577J","RAQQAS SIF EDDINE MOHAMED","19002 SPORT AMAT.DE BILLARD MARSEILLAIS"]
["161645B","RAUD DANIEL","19098 BILLARD CLUB LA FARE"]
["157788J","RAVENET FRANCIS","19059 BILLARD CLUB ROQUEBRUNOIS"]
["120280E","RAVERDINO MICHEL","19056 BILLARD CLUB DE NICE"]
["168064D","RECASENS PATRICK","19056 BILLARD CLUB DE NICE"]
["156535X","REMIRO CANDIDO","19130 BLACK BALL CAVAILLONNAIS"]
["133622I","RENAUD JEAN PAUL","19009 CLUB BILLARD ISTREEN"]
["153346F","RENAUD MARTINE","19127 O CIGALON BILLARD CLUB"]
["153347G","RENAUD THIERRY","19127 O CIGALON BILLARD CLUB"]
["119696S","REVALOR MICHEL","19050 BILLARD CLUB SAUSSETOIS"]
["183164R","REVELLIN CHRISTIAN","19014 BILLARD CLUB AVIGNONNAIS"]
["022366G","RIBOLLA PATRICE","19056 BILLARD CLUB DE NICE"]
["147449W","RICARD AUDREY","19127 O CIGALON BILLARD CLUB"]
["022367H","RICHARD GUY","19023 BILLARD CLUB GARDEEN"]
["107093Z","RICHAUD PIERRE","19017 BILLARD CLUB PHOCEEN"]
["178734B","RICHIER PHILIPPE","19014 BILLARD CLUB AVIGNONNAIS"]
["179266E","RICO AURELIEN","19130 BLACK BALL CAVAILLONNAIS"]
["022372M","RIGNOLS PHILIPPE","19021 BILLARD CLUB CAVAILLONNAIS"]
["023064C","RIGOLLET PIERRE","19025 BILLARD CLUB SISTERONNAIS"]
["178015V","RIOT STEPHANE","19008 BRITISH BILLARD CLUB AVIGNON"]
["156515A","RIVARD MICHEL","19093 AMERICAN CLUB LOUIS XI"]
["170733E","RIVIER PATRICE","19017 BILLARD CLUB PHOCEEN"]
["181892J","RIVIERE CORINNE","19014 BILLARD CLUB AVIGNONNAIS"]
["134183X","ROBBE RAYMOND","19098 BILLARD CLUB LA FARE"]
["022450M","ROBERT DIDIER","19014 BILLARD CLUB AVIGNONNAIS"]
["022376Q","ROBERT DOMINIQUE","19056 BILLARD CLUB DE NICE"]
["143938C","ROBIN JEAN FRANCOIS","19056 BILLARD CLUB DE NICE"]
["168014Z","ROBINEAU ROBERT","19014 BILLARD CLUB AVIGNONNAIS"]
["182388Y","ROCCA JEAN","19017 BILLARD CLUB PHOCEEN"]
["182992E","ROCCA STEPHANE","19014 BILLARD CLUB AVIGNONNAIS"]
["164275K","ROCCI BERNARD","19021 BILLARD CLUB CAVAILLONNAIS"]
["171160T","RODRIGUES STEVE","19090 BILLARD AMATEUR ROGNAC"]
["163945B","RODRIGUEZ RONNIE","19068 BILLARD CLUB ARLESIEN"]
["103608Y","RODRIGUEZ STEPHAN","19068 BILLARD CLUB ARLESIEN"]
["134843H","ROGER GERARD","19021 BILLARD CLUB CAVAILLONNAIS"]
["133507X","ROHRBASSER PATRICK","19008 BRITISH BILLARD CLUB AVIGNON"]
["166175A","RONSAIN JEAN JACQUES","19012 SALON BILLARD CLUB"]
["163166E","ROUANET CLAUDE","19025 BILLARD CLUB SISTERONNAIS"]
["101518O","ROUGON ROBERT","19007 BILLARD CLUB BERROIS"]
["172468Q","ROUSSEL PATRICE","19068 BILLARD CLUB ARLESIEN"]
["188120D","ROYER ALAIN","19025 BILLARD CLUB SISTERONNAIS"]
["121397D","RYCKELYNCK LAURENT","19006 BILLARD CLUB CARPENTRASSIEN"]
["153753Y","SABAH YVES","19001 S. S. A. B. D AIX EN PROVENCE"]
["185637E","SAJ PATRICK","19017 BILLARD CLUB PHOCEEN"]
["136546U","SALAMA ALAIN","19021 BILLARD CLUB CAVAILLONNAIS"]
["175174G","SALES THIERRY","19061 ACAD.BILLARD ST RAPHAEL"]
["188893T","SALINA LUDOVIC","19127 O CIGALON BILLARD CLUB"]
["120008S","SAMUEL CHRISTIAN","19023 BILLARD CLUB GARDEEN"]
["163352G","SANCHEZ PEREZ FRANCISCO","19021 BILLARD CLUB CAVAILLONNAIS"]
["182824X","SANDEAUX JEAN CLEMENT","19001 S. S. A. B. D AIX EN PROVENCE"]
["118666C","SANTAMACIA CHRISTIAN","19055 ACADEMIE DE BILLARD DE MENTON"]
["118693D","SANTIAGO EMMANUEL","19021 BILLARD CLUB CAVAILLONNAIS"]
["022391F","SANTIAGO JEAN JOSEPH","19050 BILLARD CLUB SAUSSETOIS"]
["122933F","SANTORO JENNIFER","19127 O CIGALON BILLARD CLUB"]
["014138U","SARRALDE LOUIS","19021 BILLARD CLUB CAVAILLONNAIS"]
["187864A","SAUNIER DANIEL","19090 BILLARD AMATEUR ROGNAC"]
["164008V","SAUVAN HENRY","19023 BILLARD CLUB GARDEEN"]
["174856L","SAVARY PHILIPPE","19059 BILLARD CLUB ROQUEBRUNOIS"]
["186195L","SAVI OLIVIER","19050 BILLARD CLUB SAUSSETOIS"]
["113222S","SAVOIA PATRICK","19050 BILLARD CLUB SAUSSETOIS"]
["119929R","SAVOIE ISABELLE","19130 BLACK BALL CAVAILLONNAIS"]
["127551V","SAVONET VALERIE","19008 BRITISH BILLARD CLUB AVIGNON"]
["149694L","SCHAEFER ERNEST ROBERT","19006 BILLARD CLUB CARPENTRASSIEN"]
["187494Y","SCHEMBRI BERNARD","19017 BILLARD CLUB PHOCEEN"]
["136540O","SCHENK ROBERT","19056 BILLARD CLUB DE NICE"]
["182306J","SCHERTZER LOIC","19017 BILLARD CLUB PHOCEEN"]
["183292F","SCHOU MICHEL","19023 BILLARD CLUB GARDEEN"]
["175481Q","SEBAH JEAN PAUL","19017 BILLARD CLUB PHOCEEN"]
["188149K","SEBERT IOLA MORGAN","19023 BILLARD CLUB GARDEEN"]
["014712W","SEDANO JEAN LUC","19130 BLACK BALL CAVAILLONNAIS"]
["182207B","SEDRATI ONIS","19002 SPORT AMAT.DE BILLARD MARSEILLAIS"]
["186463C","SEEBORUTH NIKHIL","19002 SPORT AMAT.DE BILLARD MARSEILLAIS"]
["182883L","SEEMANN MICHAEL","19025 BILLARD CLUB SISTERONNAIS"]
["022406U","SELLIER MICHEL","19056 BILLARD CLUB DE NICE"]
["149899J","SERMON FABIO","19130 BLACK BALL CAVAILLONNAIS"]
["163238H","SICARD GEORGES","19025 BILLARD CLUB SISTERONNAIS"]
["101420U","SICOT JEAN MARIE","19021 BILLARD CLUB CAVAILLONNAIS"]
["182206A","SIDGUI OUSSAMA","19002 SPORT AMAT.DE BILLARD MARSEILLAIS"]
["022411Z","SIEBERT LOIC","19016 BILLARD CLUB ORANGEOIS"]
["168834Q","SIEGLER JEAN PIERRE","19006 BILLARD CLUB CARPENTRASSIEN"]
["156378B","SIMIAN FABIENNE","19130 BLACK BALL CAVAILLONNAIS"]
["010203L","SIMON GERARD","19014 BILLARD CLUB AVIGNONNAIS"]
["114485H","SIMON PASCAL","19127 O CIGALON BILLARD CLUB"]
["184221Q","SINANIAN ADAM SANDRINE","19017 BILLARD CLUB PHOCEEN"]
["022412A","SINANIAN JEAN PAUL","19017 BILLARD CLUB PHOCEEN"]
["159826Z","SINANIAN LEA","19017 BILLARD CLUB PHOCEEN"]
["134702W","SKAF JOSEPH","19002 SPORT AMAT.DE BILLARD MARSEILLAIS"]
["183371R","SOINARD PARDANAUD AXEL","19131 BILLARD CLUB DE L ESTAGNOL"]
["151274D","SOLARI ANNICK","19098 BILLARD CLUB LA FARE"]
["103578U","SOLTANI OMAR","19106 BILLARD CLUB VINONNAIS"]
["178610R","SOULIER JENNIFER","19068 BILLARD CLUB ARLESIEN"]
["165931K","SPINNLER JEAN LUC","19027 ACADEMIE DE BILLARD DE BOLLENE"]
["020790Q","STEINMANN SEBASTIEN","19061 ACAD.BILLARD ST RAPHAEL"]
["125931N","STEPHAN OLIVIER","19025 BILLARD CLUB SISTERONNAIS"]
["187654X","STERLINGOTS GIL","19090 BILLARD AMATEUR ROGNAC"]
["141275R","STOKES DARREN","19130 BLACK BALL CAVAILLONNAIS"]
["179072T","STRAUDO JEAN PIERRE","19090 BILLARD AMATEUR ROGNAC"]
["156278S","STRAUDO MICHEL","19090 BILLARD AMATEUR ROGNAC"]
["186725M","SUMILE JODERICK","19112 NISSA BILLARD CLUB"]
["165925D","SURATEAU BERNARD","19061 ACAD.BILLARD ST RAPHAEL"]
["142585B","SUZANNE JEREMY","19130 BLACK BALL CAVAILLONNAIS"]
["182372F","TAN BUN HO","19068 BILLARD CLUB ARLESIEN"]
["167061N","TANJI RACHID","19068 BILLARD CLUB ARLESIEN"]
["022429R","TARDIEUX LUC","19098 BILLARD CLUB LA FARE"]
["133907H","TARDY JEAN CLAUDE","19014 BILLARD CLUB AVIGNONNAIS"]
["143024Y","TARDY PIERRE YVES","19058 ACADEMIE DE BILLARD DE BARBOSSI MANDELIEU"]
["160345N","TARTING BERNARD","19001 S. S. A. B. D AIX EN PROVENCE"]
["187656Z","TAUPUA RAIHAU","19002 SPORT AMAT.DE BILLARD MARSEILLAIS"]
["183512V","TAURINES CESSIO TOM","19090 BILLARD AMATEUR ROGNAC"]
["123701T","TELOT DOMINIQUE","19059 BILLARD CLUB ROQUEBRUNOIS"]
["132938A","TEYSSIER SERGE","19007 BILLARD CLUB BERROIS"]
["014232K","THEVENET JEAN CLAUDE","19025 BILLARD CLUB SISTERONNAIS"]
["184678M","THIBAULT LUCETTE","19106 BILLARD CLUB VINONNAIS"]
["186654K","THIBOUT HERVE","19017 BILLARD CLUB PHOCEEN"]
["173938N","THIERY PATRICE","19068 BILLARD CLUB ARLESIEN"]
["125937T","THOMAS MICHEL","19061 ACAD.BILLARD ST RAPHAEL"]
["168687F","THOMAS PHILIPPE","19023 BILLARD CLUB GARDEEN"]
["113231B","TIBERT THIERRY","19055 ACADEMIE DE BILLARD DE MENTON"]
["186465E","TICHADOU SAMY","19002 SPORT AMAT.DE BILLARD MARSEILLAIS"]
["148252T","TIMSIT SERGE","19023 BILLARD CLUB GARDEEN"]
["105800G","TOMASINI ALEXANDRE","19055 ACADEMIE DE BILLARD DE MENTON"]
["131820A","TONINI BOSSI LAURENT","19002 SPORT AMAT.DE BILLARD MARSEILLAIS"]
["022438A","TONOLI PASCAL","19059 BILLARD CLUB ROQUEBRUNOIS"]
["184495N","TORCHIO GILBERT","19017 BILLARD CLUB PHOCEEN"]
["135554Q","TORES JEAN LUC","19009 CLUB BILLARD ISTREEN"]
["180537L","TORRE BENOIT","19068 BILLARD CLUB ARLESIEN"]
["123643N","TORRE DIDIER","19008 BRITISH BILLARD CLUB AVIGNON"]
["186455T","TOUATI WILLIAM","19002 SPORT AMAT.DE BILLARD MARSEILLAIS"]
["177643Q","TOULLEC DANIEL","19059 BILLARD CLUB ROQUEBRUNOIS"]
["014256I","TOURE MADOU","19002 SPORT AMAT.DE BILLARD MARSEILLAIS"]
["139062O","TOUREILLE ALAIN","19025 BILLARD CLUB SISTERONNAIS"]
["187200D","TOUZANI HICHAM","19068 BILLARD CLUB ARLESIEN"]
["131929F","TRAN DINH VUONG","19002 SPORT AMAT.DE BILLARD MARSEILLAIS"]
["022443F","TRAN KEVIN","19002 SPORT AMAT.DE BILLARD MARSEILLAIS"]
["172679V","TURPIN JEAN","19001 S. S. A. B. D AIX EN PROVENCE"]
["149445Q","TURUBAN MICHEL","19023 BILLARD CLUB GARDEEN"]
["187563Y","UNVER BURHAN","19002 SPORT AMAT.DE BILLARD MARSEILLAIS"]
["107282G","VAHE GUILLAUME","19112 NISSA BILLARD CLUB"]
["022453P","VALENSI GERARD","19017 BILLARD CLUB PHOCEEN"]
["177653B","VALET JEAN MICHEL","19023 BILLARD CLUB GARDEEN"]
["177654C","VALETTE SYLVAIN","19023 BILLARD CLUB GARDEEN"]
["178731Y","VALLEE JEAN FRANCOIS","19014 BILLARD CLUB AVIGNONNAIS"]
["171874V","VALLETTE PHILIPPE","19027 ACADEMIE DE BILLARD DE BOLLENE"]
["141274Q","VALMAGGIA CHRISTIAN","19009 CLUB BILLARD ISTREEN"]
["153163G","VALVERDE JEAN YVES","19023 BILLARD CLUB GARDEEN"]
["170621H","VAN GOOL FRANS","19058 ACADEMIE DE BILLARD DE BARBOSSI MANDELIEU"]
["186462B","VAN OVERSTRAETEN JULIEN","19002 SPORT AMAT.DE BILLARD MARSEILLAIS"]
["143155Z","VAN WIJNGAARDEN HANS","19058 ACADEMIE DE BILLARD DE BARBOSSI MANDELIEU"]
["106905T","VANDERNOOT HERVE","19008 BRITISH BILLARD CLUB AVIGNON"]
["187556Q","VANNIER LORIEN","19014 BILLARD CLUB AVIGNONNAIS"]
["189139L","VASSE JEAN LOUIS","19058 ACADEMIE DE BILLARD DE BARBOSSI MANDELIEU"]
["022459V","VAUTRIN JEAN","19056 BILLARD CLUB DE NICE"]
["178729W","VERGER NADIA","19016 BILLARD CLUB ORANGEOIS"]
["168151Y","VEZOLLE JEAN LUC","19014 BILLARD CLUB AVIGNONNAIS"]
["159948G","VIAL HUGO","19112 NISSA BILLARD CLUB"]
["147412F","VICTOR DANIEL","19019 BILLARD CLUB DE LA BAIE"]
["181240A","VIDAL RENE BERNARD","19106 BILLARD CLUB VINONNAIS"]
["148051A","VIERA MAIA ARLINDO","19061 ACAD.BILLARD ST RAPHAEL"]
["014327B","VIGNE PHILIPPE","19014 BILLARD CLUB AVIGNONNAIS"]
["181891H","VILLAIN JEAN PIERRE","19014 BILLARD CLUB AVIGNONNAIS"]
["149606Q","VILLAR FRANCOIS","19112 NISSA BILLARD CLUB"]
["176924J","VILLAR LOUP","19112 NISSA BILLARD CLUB"]
["101485H","VILLASEVIL ANTONIO","19007 BILLARD CLUB BERROIS"]
["153007M","VILLEMAIN SYLVAIN","19130 BLACK BALL CAVAILLONNAIS"]
["172469R","VILLENAVE REGIS","19068 BILLARD CLUB ARLESIEN"]
["186540L","VILLENEUVE THEO","19127 O CIGALON BILLARD CLUB"]
["147607S","VIOU GERARD","19098 BILLARD CLUB LA FARE"]
["138731V","VISCONTI JEAN","19090 BILLARD AMATEUR ROGNAC"]
["119674W","VITALIEN PIERRE","19016 BILLARD CLUB ORANGEOIS"]
["022476M","VIVALDI ANDRE","19106 BILLARD CLUB VINONNAIS"]
["132515T","VO DANG HUY","19056 BILLARD CLUB DE NICE"]
["154571M","VUILLAUME JEAN CLAUDE","19056 BILLARD CLUB DE NICE"]
["022480Q","VULTAGGIO PIERRE","19058 ACADEMIE DE BILLARD DE BARBOSSI MANDELIEU"]
["176943E","WALLON PATRICK","19027 ACADEMIE DE BILLARD DE BOLLENE"]
["117872O","WARLET JEAN CLAUDE","19061 ACAD.BILLARD ST RAPHAEL"]
["152534Y","WILLAME PHILIPPE","19001 S. S. A. B. D AIX EN PROVENCE"]
["186649E","WIRTH HUGO","19002 SPORT AMAT.DE BILLARD MARSEILLAIS"]
["182608M","WOLFF MAXIME","19002 SPORT AMAT.DE BILLARD MARSEILLAIS"]
["173870P","WULFF MICHEL","19017 BILLARD CLUB PHOCEEN"]
["172921H","WYNIGER ERIC","19014 BILLARD CLUB AVIGNONNAIS"]
["172922J","WYNIGER MARC","19014 BILLARD CLUB AVIGNONNAIS"]
["152049W","XUEREF JEAN MARIE","19019 BILLARD CLUB DE LA BAIE"]
["118660W","YACAZZI EMMANUEL","19068 BILLARD CLUB ARLESIEN"]
["186958Q","YFFAT MICHEL","19130 BLACK BALL CAVAILLONNAIS"]
["143308W","YORAC ARNOLF","19138 BILLARD CLUB FREJUSSIEN"]
["166159H","YUNG NADEGE","19130 BLACK BALL CAVAILLONNAIS"]
["182837L","YVAN LUCA","19090 BILLARD AMATEUR ROGNAC"]
["184288N","YVOZ ALAIN","19006 BILLARD CLUB CARPENTRASSIEN"]
["134311V","ZANDRINO ALAIN","19007 BILLARD CLUB BERROIS"]
["186520P","ZATTERA GIOVANNI","19002 SPORT AMAT.DE BILLARD MARSEILLAIS"]
["135171X","ZEKHNINI MOHAMED","19127 O CIGALON BILLARD CLUB"]
["101400A","ZENASNI MOHAMED","19068 BILLARD CLUB ARLESIEN"]
["144788U","ZOPPI AIME","19023 BILLARD CLUB GARDEEN"]
["125457H","ZOPPI CEDRIC","19023 BILLARD CLUB GARDEEN"]
["184338S","ZOUARI SAMY","19002 SPORT AMAT.DE BILLARD MARSEILLAIS"]

{"sheet":"CLUB","index":6,"n_rows":25,"n_cols":15,"rows_kept":25,"cut":false,"hidden":true,"merged":[[0,0,0,4]]}
["CLUB AFFILIE LMB\n",null,null,null,null,null,null,"Tournoi","Categorie","Nouveaux \nJoueurs","Competition","Forfait","Table","Distance","Division"]
["CLUB","ADRESSE 1","ADRESSE 2","CODE POSTAL","VILLE",null,null,"TOURNOI N°1","M","CL","Match de poule","Excusé","Cadre","10 Pts",1]
["19001 – S. S. A. B. D AIX EN PROVENCE","RUE PIERRE DE COUBERTIN",null,13100,"AIX EN PROVENCE",null,null,"TOURNOI N°2","N1","NC","1/2 Finale  Dpt","Non Excusé","2,80m 42/2","11 Pts",2]
["19002 – SPORT AMAT.DE BILLARD MARSEILLAIS","26 RUE PAVILLON",null,13001,"MARSEILLE",null,null,"TOURNOI N°3","N2",null,"Finale Dpt","Abandon","3,10m 47/2","15 Pts",3]
["19006 – BILLARD CLUB CARPENTRASSIEN","264 BOULEVARD ALBIN DURAND",null,84200,"CARPENTRAS",null,null,"TOURNOI N°4","N3",null,"1/2 Finale Ligue",null,"Libre","20 Pts",4]
["19007 – BILLARD CLUB BERROIS","RUE MARCEL PAGNOL",null,13130,"BERRE L ETANG",null,null,"TOURNOI N°5","N1",null,"Finale Ligue",null,"2,80m PC","25 Pts",5]
["19009 – CLUB BILLARD ISTREEN","HALLE POLYVALENTE PLACE RAOUX","ALLEE DES ECHOPPES",13800,"ISTRES",null,null,"TOURNOI N°6","N2",null,null,null,"2,80m GC","30 Pts"]
["19012 – SALON BILLARD CLUB","CERCLE DES ARTS","RUE DES FILEUSES DE SOIE",13300,"SALON DE PROVENCE",null,null,"TOURNOI N°7","N3",null,null,null,"3,10m GC","35 Pts"]
["19014 – BILLARD CLUB AVIGNONNAIS","12 RUE BONAPARTE","MAISON DU COMBATTANT",84000,"AVIGNON",null,null,"TOURNOI N°8","R1",null,null,null,"1&3 Bandes","40 Pts"]
["19016 – BILLARD CLUB ORANGEOIS","MAISON DES ASSOCIATIONS","ROUTE DE CADEROUSSE",84100,"ORANGE",null,null,"TOURNOI N°9","R2",null,null,null,"2,80m ","50 Pts"]
["19017 – BILLARD CLUB PHOCEEN","12 RUE DU DOCTEUR ACQUAVIVA",null,13004,"MARSEILLE",null,null,"TOURNOI N°10","R3",null,null,null,"3,10m ","60 Pts"]
["19019 – BILLARD CLUB DE LA BAIE","SALLE OTTAVI","AVENUE DES ALLIES",83240,"CAVALAIRE SUR MER",null,null,"TOURNOI N°11","R4",null,null,null,null,"70 Pts"]
["19021 – BILLARD CLUB CAVAILLONNAIS","CERCLE DE L INDEPENDANCE","97 COURS VICTOR HUGO",84300,"CAVAILLON",null,null,"TOURNOI N°12","4BILLES",null,null,null,null,"80 Pts"]
["19023 – BILLARD CLUB GARDEEN","LE MAS QUARTIER SAINTE MARGUERITE","293 AVENUE PIERRE LOTI",83130,"LA GARDE",null,null,null,null,null,null,null,null,"100 Pts"]
["19025 – BILLARD CLUB SISTERONNAIS","73 AVENUE DE LA DURANCE","SALLE OMNISPORT DANIEL MAFFREN",4200,"SISTERON",null,null,null,null,null,null,null,null,"120 Pts"]
["19027 – ACADEMIE DE BILLARD DE BOLLENE","GROUPE SCOLAIRE PIERRE MARIE CURIE",null,84500,"BOLLENE",null,null,null,null,null,null,null,null,"150 Pts"]
["19050 – BILLARD CLUB SAUSSETOIS","PARC MUNICIPAL DES LOISIRS","31 AVENUE DE LA COTE BLEUE",13960,"SAUSSET LES PINS",null,null,null,null,null,null,null,null,"200 Pts"]
["19055 – ACADEMIE DE BILLARD DE MENTON","ALLEE DU LOUVRE ","SALON DU LOUVRE",6500,"MENTON",null,null,null,null,null,null,null,null,"250 Pts"]
["19056 – BILLARD CLUB DE NICE","SALLE MALATESTA","64 AVENUE CYRILLE BESSET",6100,"NICE",null,null,null,null,null,null,null,null,"300 Pts"]
["19058 – ACADEMIE DE BILLARD DE BARBOSSI MANDELIEU","COUNTRY CLUB DE BARBOSSI","23 CHEMIN DE MAURE-VIEL",6210,"MANDELIEU LA NAPOULE",")",null,null,null,null,null,null,null,"400 Pts"]
["19059 – BILLARD CLUB ROQUEBRUNOIS","44 AVENUE GABRIEL PERRI",null,83520,"ROQUEBRUNE SUR ARGENS"]
["19061 – ACAD.BILLARD ST RAPHAEL","90 RUE THOMAS EDISSON","ZI LA PALUD",83700,"ST RAPHAEL"]
["19090 – BILLARD AMATEUR ROGNAC","60 BOULEVARD JEAN JAURES",null,13340,"ROGNAC"]
["19098 – BILLARD CLUB LA FARE","36 BIS AVENUE PASTEUR",null,13580,"LA FARE LES OLIVIERS"]
["19106 – BILLARD CLUB VINONNAIS","480 RUE DES ENTREPRENEURS","ZA DU PAS DE MENC",83560,"VINON SUR VERDON"]

{"sheet":"1er Tour","index":7,"n_rows":25,"n_cols":14,"rows_kept":25,"cut":false,"hidden":false,"merged":[[25,0,25,13],[18,8,19,8],[18,9,19,9],[18,10,19,10],[18,11,19,11],[18,12,19,12],[18,13,19,13],[22,1,22,2],[22,3,22,5],[22,7,22,8],[22,9,22,11],[24,0,24,14],[16,12,17,12],[16,13,17,13],[18,0,19,0],[18,1,19,1],[18,2,19,2],[18,3,19,3],[18,4,19,4],[18,5,19,5],[18,6,19,6],[18,7,19,7],[16,6,17,6],[16,7,17,7],[16,8,17,8],[16,9,17,9],[16,10,17,10],[16,11,17,11],[16,0,17,0],[16,1,17,1],[16,2,17,2],[16,3,17,3],[16,4,17,4],[16,5,17,5],[14,8,15,8],[14,9,15,9],[14,10,15,10],[14,11,15,11],[14,12,15,12],[14,13,15,13],[12,12,13,12],[12,13,13,13],[14,0,15,0],[14,1,15,1],[14,2,15,2],[14,3,15,3],[14,4,15,4],[14,5,15,5],[14,6,15,6],[14,7,15,7],[12,6,13,6],[12,7,13,7],[12,8,13,8],[12,9,13,9],[12,10,13,10],[12,11,13,11],[12,0,13,0],[12,1,13,1],[12,2,13,2],[12,3,13,3],[12,4,13,4],[12,5,13,5],[8,20,9,20],[8,21,9,21],[10,2,10,3],[10,8,10,9],[8,15,9,15],[8,16,9,16],[8,17,9,17],[8,18,9,18],[8,10,9,13],[10,10,10,13],[8,8,9,9],[0,0,0,13],[1,0,3,1],[2,15,2,21],[6,8,7,8],[6,9,7,9],[4,5,4,6],[1,2,2,4],[1,5,2,9],[1,10,2,13],[4,7,4,9],[5,0,10,1],[4,0,4,1],[4,2,4,3],[8,4,9,7],[10,4,10,7],[8,19,9,19]]}
["CHAMPIONNAT LMB  -  EQUIPES DE CLUB"]
["Version : 01\ndu : 29/01/2025",null,"Compétition:",null,null,"Match de poule"]
[]
[]
["Rencontre du :",null,{"$f":"TODAY()","v":"2026-02-06"},null,null,"Lieu de l'évènement"]
["u"]
[null,null,null,null,null,null,null,null,"FÉDÉRAL"]
[]
[null,null,null,null,"Nom du club",null,null,null,"vs",null,"Nom du club"]
[]
[null,null,"Equipe recevante",null,null,null,null,null,"Equipe visiteuse"]
["Distance","Format du\nBillard","Nom   -   Prénom\n","Points","Reprises","Série","Moyenne","Points de\nmatch","Nom   -   Prénom\n","Points","Reprises","Série","Moyenne","Points de\nmatch"]
[null,null,null,null,null,null,{"$f":"IF(ISERROR(D13/E13),\"\",D13/E13)","v":""},{"$f":"IF(OR(G13=\"\",M13=\"\"),\"\",IF(D13>J13,2,IF(D13=J13,1,IF(D13<J13,0))))","v":""},null,null,{"$f":"IF(E13>0,E13,\"\")","v":""},null,{"$f":"IF(ISERROR(J13/K13),\"\",J13/K13)","v":""},{"$f":"IF(AND(H13<>\"\",J13<>\"\"),2-H13,\"\")","v":""}]
[]
[null,null,null,null,null,null,{"$f":"IF(ISERROR(D15/E15),\"\",D15/E15)","v":""},{"$f":"IF(OR(G15=\"\",M15=\"\"),\"\",IF(D15>J15,2,IF(D15=J15,1,IF(D15<J15,0))))","v":""},null,null,{"$f":"IF(E15>0,E15,\"\")","v":""},null,{"$f":"IF(ISERROR(J15/K15),\"\",J15/K15)","v":""},{"$f":"IF(AND(H15<>\"\",J15<>\"\"),2-H15,\"\")","v":""}]
[]
[null,null,null,null,null,null,{"$f":"IF(ISERROR(D17/E17),\"\",D17/E17)","v":""},{"$f":"IF(OR(G17=\"\",M17=\"\"),\"\",IF(D17>J17,2,IF(D17=J17,1,IF(D17<J17,0))))","v":""},null,null,{"$f":"IF(E17>0,E17,\"\")","v":""},null,{"$f":"IF(ISERROR(J17/K17),\"\",J17/K17)","v":""},{"$f":"IF(AND(H17<>\"\",J17<>\"\"),2-H17,\"\")","v":""}]
[]
[null,null,null,null,null,null,{"$f":"IF(ISERROR(D19/E19),\"\",D19/E19)","v":""},{"$f":"IF(OR(G19=\"\",M19=\"\"),\"\",IF(D19>J19,2,IF(D19=J19,1,IF(D19<J19,0))))","v":""},null,null,{"$f":"IF(E19>0,E19,\"\")","v":""},null,{"$f":"IF(ISERROR(J19/K19),\"\",J19/K19)","v":""},{"$f":"IF(AND(H19<>\"\",J19<>\"\"),2-H19,\"\")","v":""}]
[]
[null,null,"Totaux",{"$f":"SUM(D13:D20)","v":0},{"$f":"SUM(E13:E19)","v":0},null,{"$f":"SUM(G13:G19)","v":0},{"$f":"SUM(H13:H19)","v":0},"Totaux",{"$f":"SUM(J13:J20)","v":0},{"$f":"SUM(K13:K19)","v":0},null,{"$f":"SUM(M13:M19)","v":0},{"$f":"SUM(N13:N19)","v":0}]
[]
[null,"Signature du capitaine",null,null,null,null,null,"Signature du capitaine"]
[]
["Ces résultats sont à transmettre (sous 48 heures) à la ligue LMB"]

{"sheet":" 2ème Tour","index":8,"n_rows":25,"n_cols":14,"rows_kept":25,"cut":false,"hidden":false,"merged":[[2,15,2,21],[0,0,0,13],[1,0,3,1],[1,2,2,4],[1,5,2,9],[1,10,2,13],[4,0,4,1],[4,2,4,3],[4,5,4,6],[4,7,4,9],[5,0,10,1],[6,8,7,8],[6,9,7,9],[8,4,9,7],[8,8,9,9],[8,20,9,20],[8,21,9,21],[10,2,10,3],[10,4,10,7],[10,8,10,9],[10,10,10,13],[8,10,9,13],[8,15,9,15],[8,16,9,16],[8,17,9,17],[8,18,9,18],[8,19,9,19],[12,10,13,10],[12,11,13,11],[12,0,13,0],[12,1,13,1],[12,2,13,2],[12,3,13,3],[12,4,13,4],[12,5,13,5],[14,12,15,12],[14,13,15,13],[12,12,13,12],[12,13,13,13],[14,0,15,0],[14,1,15,1],[14,2,15,2],[14,3,15,3],[14,4,15,4],[14,5,15,5],[14,6,15,6],[14,7,15,7],[12,6,13,6],[12,7,13,7],[12,8,13,8],[12,9,13,9],[16,5,17,5],[14,8,15,8],[14,9,15,9],[14,10,15,10],[14,11,15,11],[16,0,17,0],[16,1,17,1],[16,2,17,2],[16,3,17,3],[16,4,17,4],[16,12,17,12],[16,13,17,13],[18,0,19,0],[18,1,19,1],[18,2,19,2],[18,3,19,3],[18,4,19,4],[18,5,19,5],[18,6,19,6],[18,7,19,7],[16,6,17,6],[16,7,17,7],[16,8,17,8],[16,9,17,9],[16,10,17,10],[16,11,17,11],[25,0,25,13],[18,8,19,8],[18,9,19,9],[18,10,19,10],[18,11,19,11],[18,12,19,12],[18,13,19,13],[22,1,22,2],[22,3,22,5],[22,7,22,8],[22,9,22,11],[24,0,24,14]]}
["CHAMPIONNAT LMB  -  EQUIPES DE CLUB"]
["Version : 01\ndu : 29/01/2025",null,"Compétition"]
[]
[]
["Rencontre du :",null,{"$f":"TODAY()","v":"2026-02-06"},null,null,"Lieu de l'évènement"]
["v"]
[null,null,null,null,null,null,null,null,"FÉDÉRAL"]
[]
[null,null,null,null,"Nom du club",null,null,null,"vs",null,"Nom du club"]
[]
[null,null,"Equipe recevante",null,null,null,null,null,"Equipe visiteuse"]
["Distance","Format du\nBillard","Nom   -   Prénom\n","Points","Reprises","Série","Moyenne","Points de\nmatch","Nom   -   Prénom\n","Points","Reprises","Série","Moyenne","Points de\nmatch"]
[null,null,null,null,null,null,{"$f":"IF(ISERROR(D13/E13),\"\",D13/E13)","v":""},{"$f":"IF(OR(G13=\"\",M13=\"\"),\"\",IF(D13>J13,2,IF(D13=J13,1,IF(D13<J13,0))))","v":""},null,null,{"$f":"IF(E13>0,E13,\"\")","v":""},null,{"$f":"IF(ISERROR(J13/K13),\"\",J13/K13)","v":""},{"$f":"IF(AND(H13<>\"\",J13<>\"\"),2-H13,\"\")","v":""}]
[]
[null,null,null,null,null,null,{"$f":"IF(ISERROR(D15/E15),\"\",D15/E15)","v":""},{"$f":"IF(OR(G15=\"\",M15=\"\"),\"\",IF(D15>J15,2,IF(D15=J15,1,IF(D15<J15,0))))","v":""},null,null,{"$f":"IF(E15>0,E15,\"\")","v":""},null,{"$f":"IF(ISERROR(J15/K15),\"\",J15/K15)","v":""},{"$f":"IF(AND(H15<>\"\",J15<>\"\"),2-H15,\"\")","v":""}]
[]
[null,null,null,null,null,null,{"$f":"IF(ISERROR(D17/E17),\"\",D17/E17)","v":""},{"$f":"IF(OR(G17=\"\",M17=\"\"),\"\",IF(D17>J17,2,IF(D17=J17,1,IF(D17<J17,0))))","v":""},null,null,{"$f":"IF(E17>0,E17,\"\")","v":""},null,{"$f":"IF(ISERROR(J17/K17),\"\",J17/K17)","v":""},{"$f":"IF(AND(H17<>\"\",J17<>\"\"),2-H17,\"\")","v":""}]
[]
[null,null,null,null,null,null,{"$f":"IF(ISERROR(D19/E19),\"\",D19/E19)","v":""},{"$f":"IF(OR(G19=\"\",M19=\"\"),\"\",IF(D19>J19,2,IF(D19=J19,1,IF(D19<J19,0))))","v":""},null,null,{"$f":"IF(E19>0,E19,\"\")","v":""},null,{"$f":"IF(ISERROR(J19/K19),\"\",J19/K19)","v":""},{"$f":"IF(AND(H19<>\"\",J19<>\"\"),2-H19,\"\")","v":""}]
[]
[null,null,"Totaux",{"$f":"SUM(D13:D20)","v":0},{"$f":"SUM(E13:E19)","v":0},null,{"$f":"SUM(G13:G19)","v":0},{"$f":"SUM(H13:H19)","v":0},"Totaux",{"$f":"SUM(J13:J20)","v":0},{"$f":"SUM(K13:K19)","v":0},null,{"$f":"SUM(M13:M19)","v":0},{"$f":"SUM(N13:N19)","v":0}]
[]
[null,"Signature du capitaine",null,null,null,null,null,"Signature du capitaine"]
[]
["Ces résultats sont à transmettre (sous 48 heures) à la ligue LMB"]

{"sheet":"3ème Tour","index":9,"n_rows":25,"n_cols":14,"rows_kept":25,"cut":false,"hidden":false,"merged":[[2,15,2,21],[0,0,0,13],[1,0,3,1],[1,2,2,4],[1,5,2,9],[1,10,2,13],[4,0,4,1],[4,2,4,3],[4,5,4,6],[4,7,4,9],[5,0,10,1],[6,8,7,8],[6,9,7,9],[8,4,9,7],[8,8,9,9],[8,20,9,20],[8,21,9,21],[10,2,10,3],[10,4,10,7],[10,8,10,9],[10,10,10,13],[8,10,9,13],[8,15,9,15],[8,16,9,16],[8,17,9,17],[8,18,9,18],[8,19,9,19],[12,10,13,10],[12,11,13,11],[12,0,13,0],[12,1,13,1],[12,2,13,2],[12,3,13,3],[12,4,13,4],[12,5,13,5],[14,12,15,12],[14,13,15,13],[12,12,13,12],[12,13,13,13],[14,0,15,0],[14,1,15,1],[14,2,15,2],[14,3,15,3],[14,4,15,4],[14,5,15,5],[14,6,15,6],[14,7,15,7],[12,6,13,6],[12,7,13,7],[12,8,13,8],[12,9,13,9],[16,5,17,5],[14,8,15,8],[14,9,15,9],[14,10,15,10],[14,11,15,11],[16,0,17,0],[16,1,17,1],[16,2,17,2],[16,3,17,3],[16,4,17,4],[16,12,17,12],[16,13,17,13],[18,0,19,0],[18,1,19,1],[18,2,19,2],[18,3,19,3],[18,4,19,4],[18,5,19,5],[18,6,19,6],[18,7,19,7],[16,6,17,6],[16,7,17,7],[16,8,17,8],[16,9,17,9],[16,10,17,10],[16,11,17,11],[25,0,25,13],[18,8,19,8],[18,9,19,9],[18,10,19,10],[18,11,19,11],[18,12,19,12],[18,13,19,13],[22,1,22,2],[22,3,22,5],[22,7,22,8],[22,9,22,11],[24,0,24,14]]}
["CHAMPIONNAT LMB  -  EQUIPES DE CLUB"]
["Version : 01\ndu : 29/01/2025",null,"Compétition",null,null,"Match de poule"]
[]
[]
["Rencontre du :",null,{"$f":"TODAY()","v":"2026-02-06"},null,null,"Lieu de l'évènement"]
["w"]
[null,null,null,null,null,null,null,null,"FÉDÉRAL"]
[]
[null,null,null,null,"Nom du club",null,null,null,"vs",null,"Nom du club"]
[]
[null,null,"Equipe recevante",null,null,null,null,null,"Equipe visiteuse"]
["Distance","Format du\nBillard","Nom   -   Prénom\n","Points","Reprises","Série","Moyenne","Points de\nmatch","Nom   -   Prénom\n","Points","Reprises","Série","Moyenne","Points de\nmatch"]
[null,null,null,null,null,null,{"$f":"IF(ISERROR(D13/E13),\"\",D13/E13)","v":""},{"$f":"IF(OR(G13=\"\",M13=\"\"),\"\",IF(D13>J13,2,IF(D13=J13,1,IF(D13<J13,0))))","v":""},null,null,{"$f":"IF(E13>0,E13,\"\")","v":""},null,{"$f":"IF(ISERROR(J13/K13),\"\",J13/K13)","v":""},{"$f":"IF(AND(H13<>\"\",J13<>\"\"),2-H13,\"\")","v":""}]
[]
[null,null,null,null,null,null,{"$f":"IF(ISERROR(D15/E15),\"\",D15/E15)","v":""},{"$f":"IF(OR(G15=\"\",M15=\"\"),\"\",IF(D15>J15,2,IF(D15=J15,1,IF(D15<J15,0))))","v":""},null,null,{"$f":"IF(E15>0,E15,\"\")","v":""},null,{"$f":"IF(ISERROR(J15/K15),\"\",J15/K15)","v":""},{"$f":"IF(AND(H15<>\"\",J15<>\"\"),2-H15,\"\")","v":""}]
[]
[null,null,null,null,null,null,{"$f":"IF(ISERROR(D17/E17),\"\",D17/E17)","v":""},{"$f":"IF(OR(G17=\"\",M17=\"\"),\"\",IF(D17>J17,2,IF(D17=J17,1,IF(D17<J17,0))))","v":""},null,null,{"$f":"IF(E17>0,E17,\"\")","v":""},null,{"$f":"IF(ISERROR(J17/K17),\"\",J17/K17)","v":""},{"$f":"IF(AND(H17<>\"\",J17<>\"\"),2-H17,\"\")","v":""}]
[]
[null,null,null,null,null,null,{"$f":"IF(ISERROR(D19/E19),\"\",D19/E19)","v":""},{"$f":"IF(OR(G19=\"\",M19=\"\"),\"\",IF(D19>J19,2,IF(D19=J19,1,IF(D19<J19,0))))","v":""},null,null,{"$f":"IF(E19>0,E19,\"\")","v":""},null,{"$f":"IF(ISERROR(J19/K19),\"\",J19/K19)","v":""},{"$f":"IF(AND(H19<>\"\",J19<>\"\"),2-H19,\"\")","v":""}]
[]
[null,null,"Totaux",{"$f":"SUM(D13:D20)","v":0},{"$f":"SUM(E13:E19)","v":0},null,{"$f":"SUM(G13:G19)","v":0},{"$f":"SUM(H13:H19)","v":0},"Totaux",{"$f":"SUM(J13:J20)","v":0},{"$f":"SUM(K13:K19)","v":0},null,{"$f":"SUM(M13:M19)","v":0},{"$f":"SUM(N13:N19)","v":0}]
[]
[null,"Signature du capitaine",null,null,null,null,null,"Signature du capitaine"]
[]
["Ces résultats sont à transmettre (sous 48 heures) à la ligue LMB"]

{"sheet":"4ème Tour","index":10,"n_rows":25,"n_cols":14,"rows_kept":25,"cut":false,"hidden":false,"merged":[[2,15,2,21],[0,0,0,13],[1,0,3,1],[1,2,2,4],[1,5,2,9],[1,10,2,13],[4,0,4,1],[4,2,4,3],[4,5,4,6],[4,7,4,9],[5,0,10,1],[6,8,7,8],[6,9,7,9],[8,4,9,7],[8,8,9,9],[8,20,9,20],[8,21,9,21],[10,2,10,3],[10,4,10,7],[10,8,10,9],[10,10,10,13],[8,10,9,13],[8,15,9,15],[8,16,9,16],[8,17,9,17],[8,18,9,18],[8,19,9,19],[12,10,13,10],[12,11,13,11],[12,0,13,0],[12,1,13,1],[12,2,13,2],[12,3,13,3],[12,4,13,4],[12,5,13,5],[14,12,15,12],[14,13,15,13],[12,12,13,12],[12,13,13,13],[14,0,15,0],[14,1,15,1],[14,2,15,2],[14,3,15,3],[14,4,15,4],[14,5,15,5],[14,6,15,6],[14,7,15,7],[12,6,13,6],[12,7,13,7],[12,8,13,8],[12,9,13,9],[16,5,17,5],[14,8,15,8],[14,9,15,9],[14,10,15,10],[14,11,15,11],[16,0,17,0],[16,1,17,1],[16,2,17,2],[16,3,17,3],[16,4,17,4],[16,12,17,12],[16,13,17,13],[18,0,19,0],[18,1,19,1],[18,2,19,2],[18,3,19,3],[18,4,19,4],[18,5,19,5],[18,6,19,6],[18,7,19,7],[16,6,17,6],[16,7,17,7],[16,8,17,8],[16,9,17,9],[16,10,17,10],[16,11,17,11],[25,0,25,13],[18,8,19,8],[18,9,19,9],[18,10,19,10],[18,11,19,11],[18,12,19,12],[18,13,19,13],[22,1,22,2],[22,3,22,5],[22,7,22,8],[22,9,22,11],[24,0,24,14]]}
["CHAMPIONNAT LMB  -  EQUIPES DE CLUB"]
["Version : 01\ndu : 29/01/2025",null,"Compétition",null,null,"Match de poule"]
[]
[]
["Rencontre du :",null,{"$f":"TODAY()","v":"2026-02-06"},null,null,"Lieu de l'évènement"]
["x"]
[null,null,null,null,null,null,null,null,"FÉDÉRAL"]
[]
[null,null,null,null,"Nom du club",null,null,null,"vs",null,"Nom du club"]
[]
[null,null,"Equipe recevante",null,null,null,null,null,"Equipe visiteuse"]
["Distance","Format du\nBillard","Nom   -   Prénom\n","Points","Reprises","Série","Moyenne","Points de\nmatch","Nom   -   Prénom\n","Points","Reprises","Série","Moyenne","Points de\nmatch"]
[null,null,null,null,null,null,{"$f":"IF(ISERROR(D13/E13),\"\",D13/E13)","v":""},{"$f":"IF(OR(G13=\"\",M13=\"\"),\"\",IF(D13>J13,2,IF(D13=J13,1,IF(D13<J13,0))))","v":""},null,null,{"$f":"IF(E13>0,E13,\"\")","v":""},null,{"$f":"IF(ISERROR(J13/K13),\"\",J13/K13)","v":""},{"$f":"IF(AND(H13<>\"\",J13<>\"\"),2-H13,\"\")","v":""}]
[]
[null,null,null,null,null,null,{"$f":"IF(ISERROR(D15/E15),\"\",D15/E15)","v":""},{"$f":"IF(OR(G15=\"\",M15=\"\"),\"\",IF(D15>J15,2,IF(D15=J15,1,IF(D15<J15,0))))","v":""},null,null,{"$f":"IF(E15>0,E15,\"\")","v":""},null,{"$f":"IF(ISERROR(J15/K15),\"\",J15/K15)","v":""},{"$f":"IF(AND(H15<>\"\",J15<>\"\"),2-H15,\"\")","v":""}]
[]
[null,null,null,null,null,null,{"$f":"IF(ISERROR(D17/E17),\"\",D17/E17)","v":""},{"$f":"IF(OR(G17=\"\",M17=\"\"),\"\",IF(D17>J17,2,IF(D17=J17,1,IF(D17<J17,0))))","v":""},null,null,{"$f":"IF(E17>0,E17,\"\")","v":""},null,{"$f":"IF(ISERROR(J17/K17),\"\",J17/K17)","v":""},{"$f":"IF(AND(H17<>\"\",J17<>\"\"),2-H17,\"\")","v":""}]
[]
[null,null,null,null,null,null,{"$f":"IF(ISERROR(D19/E19),\"\",D19/E19)","v":""},{"$f":"IF(OR(G19=\"\",M19=\"\"),\"\",IF(D19>J19,2,IF(D19=J19,1,IF(D19<J19,0))))","v":""},null,null,{"$f":"IF(E19>0,E19,\"\")","v":""},null,{"$f":"IF(ISERROR(J19/K19),\"\",J19/K19)","v":""},{"$f":"IF(AND(H19<>\"\",J19<>\"\"),2-H19,\"\")","v":""}]
[]
[null,null,"Totaux",{"$f":"SUM(D13:D20)","v":0},{"$f":"SUM(E13:E19)","v":0},null,{"$f":"SUM(G13:G19)","v":0},{"$f":"SUM(H13:H19)","v":0},"Totaux",{"$f":"SUM(J13:J20)","v":0},{"$f":"SUM(K13:K19)","v":0},null,{"$f":"SUM(M13:M19)","v":0},{"$f":"SUM(N13:N19)","v":0}]
[]
[null,"Signature du capitaine",null,null,null,null,null,"Signature du capitaine"]
[]
["Ces résultats sont à transmettre (sous 48 heures) à la ligue LMB"]

{"sheet":"5ème Tour","index":11,"n_rows":25,"n_cols":14,"rows_kept":25,"cut":false,"hidden":false,"merged":[[2,15,2,21],[0,0,0,13],[1,0,3,1],[1,2,2,4],[1,5,2,9],[1,10,2,13],[4,0,4,1],[4,2,4,3],[4,5,4,6],[4,7,4,9],[5,0,10,1],[6,8,7,8],[6,9,7,9],[8,4,9,7],[8,8,9,9],[8,20,9,20],[8,21,9,21],[10,2,10,3],[10,4,10,7],[10,8,10,9],[10,10,10,13],[8,10,9,13],[8,15,9,15],[8,16,9,16],[8,17,9,17],[8,18,9,18],[8,19,9,19],[12,10,13,10],[12,11,13,11],[12,0,13,0],[12,1,13,1],[12,2,13,2],[12,3,13,3],[12,4,13,4],[12,5,13,5],[14,12,15,12],[14,13,15,13],[12,12,13,12],[12,13,13,13],[14,0,15,0],[14,1,15,1],[14,2,15,2],[14,3,15,3],[14,4,15,4],[14,5,15,5],[14,6,15,6],[14,7,15,7],[12,6,13,6],[12,7,13,7],[12,8,13,8],[12,9,13,9],[16,5,17,5],[14,8,15,8],[14,9,15,9],[14,10,15,10],[14,11,15,11],[16,0,17,0],[16,1,17,1],[16,2,17,2],[16,3,17,3],[16,4,17,4],[16,12,17,12],[16,13,17,13],[18,0,19,0],[18,1,19,1],[18,2,19,2],[18,3,19,3],[18,4,19,4],[18,5,19,5],[18,6,19,6],[18,7,19,7],[16,6,17,6],[16,7,17,7],[16,8,17,8],[16,9,17,9],[16,10,17,10],[16,11,17,11],[25,0,25,13],[18,8,19,8],[18,9,19,9],[18,10,19,10],[18,11,19,11],[18,12,19,12],[18,13,19,13],[22,1,22,2],[22,3,22,5],[22,7,22,8],[22,9,22,11],[24,0,24,14]]}
["CHAMPIONNAT LMB  -  EQUIPES DE CLUB"]
["Version : 01\ndu : 29/01/2025",null,"Compétition",null,null,"Match de poule"]
[]
[]
["Rencontre du :",null,{"$f":"TODAY()","v":"2026-02-06"},null,null,"Lieu de l'évènement"]
["y"]
[null,null,null,null,null,null,null,null,"Division"]
[]
[null,null,null,null,"Nom du club",null,null,null,"vs",null,"Nom du club"]
[]
[null,null,"Equipe recevante",null,null,null,null,null,"Equipe visiteuse"]
["Distance","Format du\nBillard","Nom   -   Prénom\n","Points","Reprises","Série","Moyenne","Points de\nmatch","Nom   -   Prénom\n","Points","Reprises","Série","Moyenne","Points de\nmatch"]
[null,null,null,null,null,null,{"$f":"IF(ISERROR(D13/E13),\"\",D13/E13)","v":""},{"$f":"IF(OR(G13=\"\",M13=\"\"),\"\",IF(D13>J13,2,IF(D13=J13,1,IF(D13<J13,0))))","v":""},null,null,{"$f":"IF(E13>0,E13,\"\")","v":""},null,{"$f":"IF(ISERROR(J13/K13),\"\",J13/K13)","v":""},{"$f":"IF(AND(H13<>\"\",J13<>\"\"),2-H13,\"\")","v":""}]
[]
[null,null,null,null,null,null,{"$f":"IF(ISERROR(D15/E15),\"\",D15/E15)","v":""},{"$f":"IF(OR(G15=\"\",M15=\"\"),\"\",IF(D15>J15,2,IF(D15=J15,1,IF(D15<J15,0))))","v":""},null,null,{"$f":"IF(E15>0,E15,\"\")","v":""},null,{"$f":"IF(ISERROR(J15/K15),\"\",J15/K15)","v":""},{"$f":"IF(AND(H15<>\"\",J15<>\"\"),2-H15,\"\")","v":""}]
[]
[null,null,null,null,null,null,{"$f":"IF(ISERROR(D17/E17),\"\",D17/E17)","v":""},{"$f":"IF(OR(G17=\"\",M17=\"\"),\"\",IF(D17>J17,2,IF(D17=J17,1,IF(D17<J17,0))))","v":""},null,null,{"$f":"IF(E17>0,E17,\"\")","v":""},null,{"$f":"IF(ISERROR(J17/K17),\"\",J17/K17)","v":""},{"$f":"IF(AND(H17<>\"\",J17<>\"\"),2-H17,\"\")","v":""}]
[]
[null,null,null,null,null,null,{"$f":"IF(ISERROR(D19/E19),\"\",D19/E19)","v":""},{"$f":"IF(OR(G19=\"\",M19=\"\"),\"\",IF(D19>J19,2,IF(D19=J19,1,IF(D19<J19,0))))","v":""},null,null,{"$f":"IF(E19>0,E19,\"\")","v":""},null,{"$f":"IF(ISERROR(J19/K19),\"\",J19/K19)","v":""},{"$f":"IF(AND(H19<>\"\",J19<>\"\"),2-H19,\"\")","v":""}]
[]
[null,null,"Totaux",{"$f":"SUM(D13:D20)","v":0},{"$f":"SUM(E13:E19)","v":0},null,{"$f":"SUM(G13:G19)","v":0},{"$f":"SUM(H13:H19)","v":0},"Totaux",{"$f":"SUM(J13:J20)","v":0},{"$f":"SUM(K13:K19)","v":0},null,{"$f":"SUM(M13:M19)","v":0},{"$f":"SUM(N13:N19)","v":0}]
[]
[null,"Signature du capitaine",null,null,null,null,null,"Signature du capitaine"]
[]
["Ces résultats sont à transmettre (sous 48 heures) à la ligue LMB"]

{"sheet":"6ème Tour","index":12,"n_rows":25,"n_cols":14,"rows_kept":25,"cut":false,"hidden":false,"merged":[[25,0,25,13],[18,8,19,8],[18,9,19,9],[18,10,19,10],[18,11,19,11],[18,12,19,12],[18,13,19,13],[22,1,22,2],[22,3,22,5],[22,7,22,8],[22,9,22,11],[24,0,24,14],[16,12,17,12],[16,13,17,13],[18,0,19,0],[18,1,19,1],[18,2,19,2],[18,3,19,3],[18,4,19,4],[18,5,19,5],[18,6,19,6],[18,7,19,7],[16,6,17,6],[16,7,17,7],[16,8,17,8],[16,9,17,9],[16,10,17,10],[16,11,17,11],[16,0,17,0],[16,1,17,1],[16,2,17,2],[16,3,17,3],[16,4,17,4],[16,5,17,5],[14,8,15,8],[14,9,15,9],[14,10,15,10],[14,11,15,11],[14,12,15,12],[14,13,15,13],[12,12,13,12],[12,13,13,13],[14,0,15,0],[14,1,15,1],[14,2,15,2],[14,3,15,3],[14,4,15,4],[14,5,15,5],[14,6,15,6],[14,7,15,7],[12,6,13,6],[12,7,13,7],[12,8,13,8],[12,9,13,9],[12,10,13,10],[12,11,13,11],[12,0,13,0],[12,1,13,1],[12,2,13,2],[12,3,13,3],[12,4,13,4],[12,5,13,5],[8,20,9,20],[8,21,9,21],[10,2,10,3],[10,4,10,7],[10,8,10,9],[10,10,10,13],[8,10,9,13],[8,15,9,15],[8,16,9,16],[8,17,9,17],[8,18,9,18],[8,19,9,19],[4,0,4,1],[4,2,4,3],[4,5,4,6],[4,7,4,9],[5,0,10,1],[6,8,7,8],[6,9,7,9],[8,4,9,7],[8,8,9,9],[2,15,2,21],[0,0,0,13],[1,0,3,1],[1,2,2,4],[1,5,2,9],[1,10,2,13]]}
["CHAMPIONNAT LMB  -  EQUIPES DE CLUB"]
["Version : 01\ndu : 29/01/2025",null,"Compétition",null,null,"Match de poule"]
[]
[]
["Rencontre du :",null,{"$f":"TODAY()","v":"2026-02-06"},null,null,"Lieu de l'évènement"]
["z"]
[null,null,null,null,null,null,null,null,"FÉDÉRAL"]
[]
[null,null,null,null,"Nom du club",null,null,null,"vs",null,"Nom du club"]
[]
[null,null,"Equipe recevante",null,null,null,null,null,"Equipe visiteuse"]
["Distance","Format du\nBillard","Nom   -   Prénom\n","Points","Reprises","Série","Moyenne","Points de\nmatch","Nom   -   Prénom\n","Points","Reprises","Série","Moyenne","Points de\nmatch"]
[null,null,null,null,null,null,{"$f":"IF(ISERROR(D13/E13),\"\",D13/E13)","v":""},{"$f":"IF(OR(G13=\"\",M13=\"\"),\"\",IF(D13>J13,2,IF(D13=J13,1,IF(D13<J13,0))))","v":""},null,null,{"$f":"IF(E13>0,E13,\"\")","v":""},null,{"$f":"IF(ISERROR(J13/K13),\"\",J13/K13)","v":""},{"$f":"IF(AND(H13<>\"\",J13<>\"\"),2-H13,\"\")","v":""}]
[]
[null,null,null,null,null,null,{"$f":"IF(ISERROR(D15/E15),\"\",D15/E15)","v":""},{"$f":"IF(OR(G15=\"\",M15=\"\"),\"\",IF(D15>J15,2,IF(D15=J15,1,IF(D15<J15,0))))","v":""},null,null,{"$f":"IF(E15>0,E15,\"\")","v":""},null,{"$f":"IF(ISERROR(J15/K15),\"\",J15/K15)","v":""},{"$f":"IF(AND(H15<>\"\",J15<>\"\"),2-H15,\"\")","v":""}]
[]
[null,null,null,null,null,null,{"$f":"IF(ISERROR(D17/E17),\"\",D17/E17)","v":""},{"$f":"IF(OR(G17=\"\",M17=\"\"),\"\",IF(D17>J17,2,IF(D17=J17,1,IF(D17<J17,0))))","v":""},null,null,{"$f":"IF(E17>0,E17,\"\")","v":""},null,{"$f":"IF(ISERROR(J17/K17),\"\",J17/K17)","v":""},{"$f":"IF(AND(H17<>\"\",J17<>\"\"),2-H17,\"\")","v":""}]
[]
[null,null,null,null,null,null,{"$f":"IF(ISERROR(D19/E19),\"\",D19/E19)","v":""},{"$f":"IF(OR(G19=\"\",M19=\"\"),\"\",IF(D19>J19,2,IF(D19=J19,1,IF(D19<J19,0))))","v":""},null,null,{"$f":"IF(E19>0,E19,\"\")","v":""},null,{"$f":"IF(ISERROR(J19/K19),\"\",J19/K19)","v":""},{"$f":"IF(AND(H19<>\"\",J19<>\"\"),2-H19,\"\")","v":""}]
[]
[null,null,"Totaux",{"$f":"SUM(D13:D20)","v":0},{"$f":"SUM(E13:E19)","v":0},null,{"$f":"SUM(G13:G19)","v":0},{"$f":"SUM(H13:H19)","v":0},"Totaux",{"$f":"SUM(J13:J20)","v":0},{"$f":"SUM(K13:K19)","v":0},null,{"$f":"SUM(M13:M19)","v":0},{"$f":"SUM(N13:N19)","v":0}]
[]
[null,"Signature du capitaine",null,null,null,null,null,"Signature du capitaine"]
[]
["Ces résultats sont à transmettre (sous 48 heures) à la ligue LMB"]